Cogmind - Beta 15 @@@ ROGUE MODE // 2025.07.10 @ 01:10:21 Player: Infomantis Result: Establishing Free Derelict Territories! Performance ------------- Evolutions (9) 4500 Regions Visited (40) 8000 Robots Destroyed (596) 2980 Value Destroyed (33918) 33918 Prototype IDs (86) 1720 Alien Tech Used (0) 0 Bonus (48414) 48414 TOTAL SCORE: 99532 Bonus ------- High Alert Combat Kills 6688 Follower Combat Kills 4797 Entered Garrisons 1400 Entered DSFs 500 Network Hubs Disabled 600 Aligned with FarCom 300 Met Data Miner 300 Acquired ECA 300 Met Warlord at Base 500 MAIN.C Attacked Warlord 500 Warlord Defense Kills 2922 Built Enhanced Grunts 300 A7 Reached Mainframe 300 Met R17 at Cetus 500 Met R17 at Research 2000 Met Warlord at Research 2000 Destroyed MAIN.C Guards 500 Met MAIN.C 5000 Hacked MAIN.C 300 Destroyed MAIN.C Shell 5000 Destroyed MAIN.C 10000 Met Warlord at Command 2000 Win 3000 Friendly Fire -1293 Cogmind --------- Core Integrity 1208/1600 Matter 300/300 Energy 600/600 System Corruption 11% Temperature Cool (0) Movement Treading (158) Location Free Derelict Territories Parts ------- > --- POWER (3) -------- Quantum Reactor Improved Quantum Reactor > --- PROPULSION (6) --- Improved Heavy Treads Armored Heavy Treads Biometal Heavy Treads (fused) > --- UTILITY (12) ----- Experimental Heat Sink Advanced Cooling System Experimental Coolant Injector Huge Storage Unit Enhanced Optical Array Experimental Targeting Computer Experimental Core Analyzer Advanced Phase Shifter Centrium Heavy Armor Plating Graphene Brace High-powered Tractor Beam > --- WEAPON (4) ------- Enhanced Nova Cannon Helical Railgun Multirail Enhanced Hardcell Cannon > --- INVENTORY (25) --- Quantum Reactor Reinforced Quantum Reactor Armored Heavy Treads Biometal Heavy Treads Advanced Coolant Injector Matter Compressor (250) Improved Terrain Scanner Experimental Terrain Scan Processor Improved Particle Charger Improved Transmission Jammer Hardened Medium Armor Plating Advanced Force Field Advanced Point Defense System Improved Trap Extractor (4/6 Dirty Bomb) Trap Reconfigurator Compact HERF Cannon Enhanced Nova Cannon Fusion Bomb Launcher Advanced Remote Datajack Peak State ------------ > --- POWER ------------ Quantum Reactor Improved Quantum Reactor Improved Quantum Reactor > --- PROPULSION ------- Armored Heavy Treads Advanced Heavy Siege Treads Advanced Heavy Siege Treads > --- UTILITY ---------- Experimental Heat Sink Advanced Cooling System Huge Storage Unit Experimental Terrain Scan Processor Experimental Targeting Computer Experimental Core Analyzer Improved Particle Charger Centrium Heavy Armor Plating Advanced Hacking Suite Advanced Hacking Suite Experimental System Shield > --- WEAPON ----------- Enhanced Quantum Rifle Enhanced Quantum Rifle Enhanced Quantum Rifle Helical Railgun > --- INVENTORY -------- Quantum Reactor Biometal Heavy Treads Biometal Heavy Treads Advanced Coolant Injector Matter Compressor Improved Terrain Scanner Experimental Terrain Scan Processor Improved Transmission Jammer Hardened Medium Armor Plating Graphene Brace Advanced Force Field Advanced Point Defense System Advanced Hacking Suite High-powered Tractor Beam Improved Trap Extractor Trap Reconfigurator Enhanced Quantum Rifle Compact HERF Cannon Enhanced Nova Cannon Enhanced Nova Cannon Enhanced Nova Cannon Fusion Bomb Launcher Advanced Remote Datajack [Rating: 216] Favorites ----------- Power Quantum Reactor Engine Improved Deuterium Engine Power Core Micro Nuclear Core Reactor Quantum Reactor Propulsion Centrium Heavy Treads Treads Centrium Heavy Treads Leg Flexi-carbon Leg Wheel Compact Wheel Hover Unit Aerolev Unit Flight Unit Cooled Q-thruster Utility Large Storage Unit Device Advanced Heat Sink Storage Large Storage Unit Processor Experimental Core Analyzer Hackware Advanced Hacking Suite Protection Centrium Medium Armor Plating Weapon Plasma Rifle Energy Gun Plasma Rifle Energy Cannon Heavy Particle Cannon Ballistic Gun Advanced KE Penetrator Ballistic Cannon Assault Cannon Launcher Improved Grenade Launcher Special Weapon Advanced Remote Datajack Impact Weapon Power Maul Slashing Weapon Power Sword Special Melee Weapon Advanced Datajack Build | -11 -10 -10 -9 -9 -9 -8 -8 -8 -8 -8 -8 -7 -7 -7 -7 -7 -7 -6 -6 -6 -6 -6 -6 -6 -6 -5 -5 -5 -5 -4 -4 -4 -4 -4 -4 -3 -3 -2 -1 -1 ------- Run | Yrd Mat Min Mat Min Exi Min Mat Gar Mat Gar Mat Fac Gar Fac Low Low Dat Pro Fac Gar Ext Cet Arc Hub Gar Fac Upp Upp War Pro Fac Gar Fac DSF Gar Res Arm Res Acc Com Slots Evolved 18 | . . . 2 . . . 2 . . . . 2 . . . . . . 2 . . . . . . 2 . . . . 2 . . . . 2 . 2 2 . Power 2 | . . . . . . . . . . . . 1 . . . . . . . . . . . . . . . . . . . . . . . . . . 1 . Propulsion 4 | . . . . . . . 1 . . . . . . . . . . . 1 . . . . . . . . . . . . . . . . 2 . . . . Utility 10 | . . . 1 . . . 1 . . . . 1 . . . . . . 1 . . . . . . 2 . . . . 1 . . . . . . 2 1 . Weapon 2 | . . . 1 . . . . . . . . . . . . . . . . . . . . . . . . . . . 1 . . . . . . . . . Parts Attached 453 | 7 12 6 22 . 1 2 25 7 12 13 5 16 11 8 8 1 . 6 25 36 9 12 7 2 8 10 12 4 20 . 7 30 1 7 13 16 25 26 8 13 Power 53 | 1 2 1 3 . . . 2 . 2 1 . 5 2 1 2 1 . 1 2 5 2 2 . . . . 1 1 1 . . 4 . . 2 . 3 5 . 1 Engine 24 | 1 2 1 3 . . . 2 . 1 1 . 4 2 . 1 . . 1 1 2 2 . . . . . . . . . . . . . . . . . . . Core 8 | . . . . . . . . . 1 . . 1 . 1 1 1 . . . 1 . . . . . . 1 1 . . . . . . . . . . . . Reactor 21 | . . . . . . . . . . . . . . . . . . . 1 2 . 2 . . . . . . 1 . . 4 . . 2 . 3 5 . 1 Propulsion 96 | 2 2 2 7 . . . 8 2 6 7 2 1 2 3 1 . . 1 7 13 5 2 3 . . . 2 . 4 . . 5 . 2 . 2 1 1 2 1 Treads 65 | 2 2 2 6 . . . 6 2 6 7 2 1 2 3 1 . . 1 2 4 . 2 2 . . . . . 1 . . 2 . 2 . 2 1 1 2 1 Leg 16 | . . . . . . . . . . . . . . . . . . . 1 8 5 . . . . . 1 . 1 . . . . . . . . . . . Wheel 8 | . . . . . . . 2 . . . . . . . . . . . 4 1 . . . . . . 1 . . . . . . . . . . . . . Hover 4 | . . . 1 . . . . . . . . . . . . . . . . . . . 1 . . . . . 1 . . 1 . . . . . . . . Flight 3 | . . . . . . . . . . . . . . . . . . . . . . . . . . . . . 1 . . 2 . . . . . . . . Utility 170 | 2 4 . 3 . 1 1 10 1 1 3 2 6 3 . 2 . . 2 11 5 2 5 2 2 8 8 7 1 11 . 4 10 . 3 5 9 11 13 4 8 Device 83 | 1 2 . 1 . . 1 5 . . 1 2 2 1 . 1 . . . 8 3 1 2 2 . 5 3 3 1 4 . 2 6 . 2 3 5 3 6 1 6 Storage 12 | 1 1 . 1 . 1 . 1 . . . . 1 . . . . . . 1 . . . . . . . 1 . 1 . . . . 1 1 1 . . . . Processor 29 | . . . 1 . . . . . . . . 2 . . 1 . . 1 . . 1 . . 1 . 1 2 . 5 . 1 2 . . . 3 1 6 . 1 Hackware 17 | . . . . . . . . 1 . . . . 1 . . . . . 1 . . 1 . 1 1 2 . . . . . . . . . . 6 . 3 . Protection 29 | . 1 . . . . . 4 . 1 2 . 1 1 . . . . 1 1 2 . 2 . . 2 2 1 . 1 . 1 2 . . 1 . 1 1 . 1 Artifact . | . . . . . . . . . . . . . . . . . . . . . . . . . . . . . . . . . . . . . . . . . Weapon 134 | 2 4 3 9 . . 1 5 4 3 2 1 4 4 4 3 . . 2 5 13 . 3 2 . . 2 2 2 4 . 3 11 1 2 6 5 10 7 2 3 Energy Gun 45 | 1 1 3 3 . . 1 . 2 . . 1 1 1 . . . . 1 . 7 . 2 1 . . . . . 2 . 2 3 . . 4 2 4 1 2 . Energy Cannon 23 | . . . 1 . . . . . 3 . . . 1 2 2 . . . 1 1 . . . . . 1 1 . . . . 2 . 1 1 1 4 1 . . Ballistic Gun 39 | 1 2 . 4 . . . 4 1 . 1 . . 2 1 1 . . . . 3 . 1 . . . 1 1 1 1 . . 5 1 1 1 2 1 2 . 1 Ballistic Cannon 8 | . . . . . . . . . . 1 . 1 . 1 . . . 1 . 1 . . . . . . . 1 . . . 1 . . . . . . . 1 Launcher 6 | . . . . . . . 1 1 . . . 1 . . . . . . 1 . . . . . . . . . . . . . . . . . 1 1 . . Special Weapon 5 | . 1 . . . . . . . . . . . . . . . . . . . . . . . . . . . 1 . 1 . . . . . . 1 . 1 Impact Weapon 4 | . . . 1 . . . . . . . . 1 . . . . . . 1 1 . . . . . . . . . . . . . . . . . . . . Slashing Weapon 3 | . . . . . . . . . . . . . . . . . . . 2 . . . . . . . . . . . . . . . . . . 1 . . Piercing Weapon . | . . . . . . . . . . . . . . . . . . . . . . . . . . . . . . . . . . . . . . . . . Special Melee Weapon 1 | . . . . . . . . . . . . . . . . . . . . . . . 1 . . . . . . . . . . . . . . . . . Unidentified Prototypes 46 | . . . 5 . . . . . . . 1 2 . 1 . . . . 4 . . 4 . . . 1 . . 10 . . 8 1 . . . . 7 . 2 Corrupted Parts 3 | . . 1 . . . . . . . . . . . . . . . . . 1 . . . . . . . . . . . . . . . . . . . 1 System Corruption 18 | . . 9 . . . . . . . . . . . . . . . . . 6 . . . . . . . . . . . . . . . . . . . 3 Parts Lost 84 | . 1 1 1 . . 1 2 1 1 5 . . 4 1 2 . . 5 10 18 . 1 . . 2 . . . 1 . . 12 . . 6 2 . . 3 4 Power 12 | . . 1 . . . . . . . 1 . . 1 . 1 . . . 1 3 . 1 . . . . . . . . . 1 . . . . . . 1 1 Propulsion 19 | . . . . . . . 1 . . . . . 1 . . . . 2 2 11 . . . . . . . . . . . 1 . . . . . . . 1 Utility 24 | . . . 1 . . 1 1 . 1 2 . . . . . . . 3 2 1 . . . . 1 . . . 1 . . 5 . . 2 2 . . 1 . Weapon 29 | . 1 . . . . . . 1 . 2 . . 2 1 1 . . . 5 3 . . . . 1 . . . . . . 5 . . 4 . . . 1 2 Highest Loss Streak 11 | . 1 1 1 . . 1 1 1 1 3 . . 3 1 1 . . 4 10 4 . 1 . . 2 . . . 1 . . 11 . . 3 2 . . 1 4 To Critical Strikes 1 | . . . . . . . . . . . . . 1 . . . . . . . . . . . . . . . . . . . . . . . . . . . Average Backups 14 | 6 9 10 9 10 10 14 14 14 15 14 15 14 14 14 14 15 15 13 14 14 15 14 13 14 13 13 14 14 14 14 13 12 13 16 21 21 21 21 22 21 Power 1 | . . . . . . 3 3 2 2 1 1 . . . . 1 1 1 1 . . 1 1 1 1 1 . . . . . . 1 1 1 1 2 2 1 2 Propulsion 1 | . 2 2 1 1 1 1 . 2 3 4 4 3 1 1 2 2 2 . 1 . . . 1 1 1 1 1 1 1 1 1 1 1 2 4 2 2 1 2 2 Utility 7 | 3 3 3 4 4 5 5 7 6 6 5 6 8 9 8 8 8 8 6 7 8 7 7 5 6 6 6 8 8 8 8 7 6 6 9 11 12 11 11 12 11 Weapon 4 | 1 3 4 3 3 3 3 3 3 4 2 2 3 3 3 3 3 3 3 3 4 5 5 5 5 4 4 4 4 5 5 5 3 3 3 2 4 5 5 5 4 Tool/Special . | . . . . . . . . . . . . . . . . . . . . . . . . . . . . . . . . . . . . . . . . . Unused Backups 66 | 1 4 . 4 1 2 1 7 . 1 . 1 2 . 2 . . . . 3 2 3 1 . . . 3 . 1 . . 1 1 1 6 1 3 4 3 1 6 Power 13 | 1 1 . . . . 1 3 . . . 1 . . . . . . . 1 . . . . . . . . . . . . 1 . . . . . 2 . 2 Propulsion 13 | . . . 1 . . . . . 1 . . . . 2 . . . . . . . . . . . . . . . . . . . 6 . 1 . . . 2 Utility 25 | . 2 . 1 . 2 . 2 . . . . 1 . . . . . . 2 1 3 1 . . . 3 . . . . . . . . 1 2 2 . 1 1 Weapon 11 | . 1 . 2 1 . . 1 . . . . 1 . . . . . . . 1 . . . . . . . . . . . . 1 . . . 1 1 . 1 Tool/Special 4 | . . . . . . . 1 . . . . . . . . . . . . . . . . . . . . 1 . . 1 . . . . . 1 . . . Average Slot Usage (%) 90 | . 99 99 98 100 100 100 93 100 99 99 100 99 98 99 96 100 78 95 93 89 93 82 80 86 85 86 81 81 76 76 76 79 78 77 84 83 84 85 83 82 Engine 4 | . 14 13 11 11 11 11 9 9 7 9 9 12 14 14 2 . . 5 3 2 11 6 . . . . . . . . . . . . . . . . . . Core 1 | . . . . . . . . . 1 . . 2 . . 8 15 15 9 6 1 . . . . . . 1 10 1 . . . . . . . . . . . Reactor 4 | . . . . . . . . . . . . . . . . . . . 2 6 1 5 13 13 13 11 9 . 4 5 5 8 10 10 10 9 9 8 11 10 Treads 16 | . 28 28 21 22 22 22 16 27 27 27 27 23 22 22 23 23 23 22 10 6 . 9 13 13 13 11 10 11 10 11 9 9 10 9 10 14 14 13 12 12 Leg 1 | . . . . . . . . . . . . . . . . . . . 2 12 26 5 . . . . . . . . . . . . . . . . . . Device 15 | . 11 13 10 11 11 11 6 9 9 12 18 15 8 12 14 15 15 13 17 17 20 21 20 22 19 21 16 16 16 11 14 16 15 20 20 17 19 26 15 17 Storage 7 | . 14 14 11 11 11 11 9 9 9 9 9 7 7 7 7 7 7 7 6 6 6 6 6 6 6 5 5 5 5 5 5 5 5 5 5 4 4 4 4 4 Processor 7 | . . . 10 11 11 11 9 4 . . . 6 7 7 14 15 15 11 6 3 . . . . . . 11 11 11 17 15 14 15 10 10 9 9 11 12 12 Hackware 1 | . . . . . . . . 5 9 4 . . 5 7 . . . . 4 2 . . . 3 6 8 . . . . . . . . . . 3 4 8 6 Protection 4 | . 2 . . . . . 8 7 8 9 9 7 6 1 . . . . . 4 6 6 6 6 6 6 5 5 5 5 4 4 5 5 7 8 3 . 3 3 Energy Gun 9 | . 8 7 12 21 22 22 13 17 9 . 8 7 6 7 . . . 2 . 7 20 14 12 13 12 10 5 4 9 10 14 5 . . 9 10 6 13 12 9 Energy Cannon 2 | . . . . . . . . . 8 13 . . 6 6 7 13 1 7 3 . . . . . . . . . . . . 6 10 5 3 . . 1 1 . Ballistic Gun 7 | . 18 20 20 11 11 11 13 9 9 8 9 1 . 1 4 7 1 7 1 1 . 4 6 6 6 5 10 10 6 5 5 2 . 4 4 6 10 1 2 5 Ballistic Cannon 1 | . . . . . . . . . . 3 9 13 6 4 9 . . 4 1 . . . . . . . . . . . . 3 5 5 . . . . . . Peak Build Rating 216 | 8 8 13 22 22 25 28 39 35 35 34 43 51 54 54 48 49 48 54 69 85 83 118 118 118 118 128 122 109 133 128 142 151 151 158 158 163 172 188 216 214 Average Rating 84 | 7 7 8 18 21 22 26 31 32 33 31 41 48 48 46 44 46 37 49 59 69 80 105 114 116 116 126 113 108 118 126 137 141 150 152 144 156 160 184 208 204 On Entrance 82 | . 8 8 9 21 22 25 28 32 34 34 31 40 49 47 48 45 48 48 52 64 83 81 118 118 116 118 122 109 108 128 126 137 151 151 158 142 156 172 188 197 Naked Turns . | . . . . . . . . . . . . . . . . . . . . . . . . . . . . . . . . . . . . . . . . . Heaviest Build 201 | 15 21 21 28 29 39 40 52 53 51 56 49 61 65 66 57 61 61 64 62 88 78 100 89 88 89 122 116 110 117 110 114 129 129 194 201 159 163 161 194 195 Greatest Support 230 | 40 40 40 46 46 46 46 63 63 66 65 76 76 76 76 68 68 68 68 62 70 75 160 160 160 160 160 160 160 160 150 150 170 170 170 170 230 230 230 220 215 Greatest Overweight (x) 37 | . . . 1 . . . 4 1 . . . . 1 1 . . . 1 3 26 1 . 28 . . . 1 . 37 . 1 1 . 2 1 . . . . . Average Overweight (x) . | . . . . . . . 1 . . . . . . . . . . . 1 1 . . 9 . . . . . . . . . . . . . . . . . Largest Inventory Capacity 25 | 8 10 10 10 10 15 15 15 15 15 15 15 15 15 15 15 15 15 15 15 15 15 15 15 15 15 15 15 15 25 15 15 15 15 25 25 25 25 25 25 25 Average Capacity 15 | 7 9 10 10 10 12 15 15 15 15 15 15 15 15 15 15 15 15 15 15 15 15 15 15 15 15 15 15 15 15 15 15 15 15 20 25 25 25 25 25 25 Most Carried 25 | 8 10 10 10 10 14 15 15 15 15 15 15 15 15 15 15 15 15 15 15 15 15 15 15 15 15 15 15 15 15 15 15 15 15 25 25 25 25 25 25 25 Average Carried 15 | 6 9 9 9 9 10 14 14 14 14 14 14 14 14 14 14 15 15 13 14 14 14 14 14 15 14 14 14 14 14 15 14 14 14 18 24 24 24 24 24 24 Final Capacity 25 | 8 10 10 10 10 15 15 15 15 15 15 15 15 15 15 15 15 15 15 15 15 15 15 15 15 15 15 15 15 15 15 15 15 15 25 25 25 25 25 25 25 Final Carried 25 | 8 10 10 10 10 14 15 15 15 15 15 15 15 13 15 15 15 15 15 15 15 15 15 15 15 15 15 15 15 15 15 15 15 15 25 25 25 25 25 24 24 Class Distribution -------------------- 29% | Scavenger-Tank 20% | Skirmisher 15% | Scavenger-Skirmisher 6% | Gunner 6% | Mutant 4% | Tank 4% | Scavenger-Gunner 4% | Scavenger-Mutant Dominant Class ---------------- Mutant | -10/Materials Scavenger-Mutant | -10/Mines Gunner | -9/Materials Gunner | -9/Mines Gunner | -9/Exiles Skirmisher | -8/Mines Scavenger-Skirmisher | -8/Materials Scavenger-Skirmisher | -8/Garrison Scavenger-Skirmisher | -8/Materials Scavenger-Skirmisher | -8/Garrison Skirmisher | -8/Materials Skirmisher | -7/Factory Skirmisher | -7/Garrison Skirmisher | -7/Factory Skirmisher | -7/Lower Caves Skirmisher | -7/Lower Caves Mutant | -7/Data Miner Skirmisher | -6/Proximity Caves Scavenger-Gladiator | -6/Factory Scavenger-Gladiator | -6/Garrison Commander-Skirmisher | -6/Extension Scavenger-Tank | -6/Cetus Scavenger-Tank | -6/Archives Scavenger-Tank | -6/Hub_04(d) Scavenger-Tank | -6/Garrison Scavenger-Tank | -5/Factory Scavenger-Tank | -5/Upper Caves Scavenger-Tank | -5/Upper Caves Tank | -5/Warlord Scavenger-Gunner | -4/Proximity Caves Scavenger-Gunner | -4/Factory Scavenger-Gunner | -4/Garrison Tank | -4/Factory Tank | -4/DSF Scavenger-Tank | -4/Garrison Scavenger-Tank | -3/Research Scavenger-Skirmisher | -3/Armory Scavenger-Skirmisher | -2/Research Hacker-Skirmisher | -1/Access Scavenger-Tank | -1/Command Resources | -11 -10 -10 -9 -9 -9 -8 -8 -8 -8 -8 -8 -7 -7 -7 -7 -7 -7 -6 -6 -6 -6 -6 -6 -6 -6 -5 -5 -5 -5 -4 -4 -4 -4 -4 -4 -3 -3 -2 -1 -1 ----------- Run | Yrd Mat Min Mat Min Exi Min Mat Gar Mat Gar Mat Fac Gar Fac Low Low Dat Pro Fac Gar Ext Cet Arc Hub Gar Fac Upp Upp War Pro Fac Gar Fac DSF Gar Res Arm Res Acc Com Matter Collected 17332 | 365 290 160 733 73 10 45 611 337 251 356 137 784 931 298 665 109 . 449 775 995 273 206 245 59 571 225 654 97 803 60 257 1116 . 345 1060 275 991 545 380 796 Remotely 409 | . . . . . . . . . . . . . . . . . . . . . . . . . . . . . . . . . . . . . . 10 . 399 Salvage Created 26583 | 315 737 322 1131 279 . 301 1325 831 597 713 264 598 856 235 476 89 . 320 731 1572 1175 211 449 . 1108 141 450 95 1706 284 869 1860 . 535 1847 161 1332 352 1116 1200 Parts 1245 | 33 42 20 69 17 . 23 72 53 29 51 15 41 41 8 18 7 . 14 27 68 29 7 35 . 45 3 15 12 57 13 43 75 . 25 90 1 59 11 42 35 Haulers Intercepted 11 | . 2 . 2 . . . 1 . 1 . . . . . . . . . 1 . . . . . . 1 . . . . 1 . . . . 1 . 1 . . Recyclers Shooed 7 | 1 4 . 1 . . . . . . . . . . . . . . . 1 . . . . . . . . . . . . . . . . . . . . . Parts Field Recycled 5 | . . . . . . . . . . . . . . . . . . . 5 . . . . . . . . . . . . . . . . . . . . . Retrieved Matter 15 | . . . . . . . . . . . . . . . . . . . 15 . . . . . . . . . . . . . . . . . . . . . Parts Self-Destructed 77 | . . . . . . . . . . . . . . . 23 7 . 10 . . . . . . . . 15 7 . 15 . . . . . . . . . . Prevented 1 | . . . . . . . . . . . . . . . . . . 1 . . . . . . . . . . . . . . . . . . . . . . Kills | -11 -10 -10 -9 -9 -9 -8 -8 -8 -8 -8 -8 -7 -7 -7 -7 -7 -7 -6 -6 -6 -6 -6 -6 -6 -6 -5 -5 -5 -5 -4 -4 -4 -4 -4 -4 -3 -3 -2 -1 -1 ------- Run | Yrd Mat Min Mat Min Exi Min Mat Gar Mat Gar Mat Fac Gar Fac Low Low Dat Pro Fac Gar Ext Cet Arc Hub Gar Fac Upp Upp War Pro Fac Gar Fac DSF Gar Res Arm Res Acc Com Combat Hostiles Destroyed 509 | . 13 7 23 8 . 6 25 26 12 17 7 17 29 5 13 4 . 11 8 35 21 3 2 . 34 1 9 5 25 4 10 32 . 8 35 . 23 1 13 17 Melee 18 | . . . . . . . . . . . . . . . . . . 1 7 8 . . . . . . . . 1 . . . . . . . 1 . . . Guns 288 | . 13 7 23 8 . 6 23 19 7 4 6 3 8 2 2 1 . 2 . 8 12 1 2 . 15 1 6 . 23 4 10 17 . 2 7 . 18 1 12 15 Cannons 65 | . . . . . . . . . 5 9 1 11 7 3 7 3 . 2 . 1 . . . . . . . . . . . 6 . 1 8 . . . . 1 AOE 120 | . . . . . . . 2 7 . 4 . 3 14 . 4 . . 6 1 13 7 . . . 19 . 3 5 1 . . 7 . 3 18 . 3 . . . Classes Destroyed 28 | 3 5 . 4 . . . . . . 1 . 1 1 . 1 . . 2 1 . 1 . . . . . . 1 3 . . 1 . 1 . . . 1 . 1 Worker 12 | 4 1 . 3 . . . 1 . . . . 2 . . . . . . . . . . . . . . . . . . . . . . . . . . . 1 Builder 1 | . . . . . . . . . . . . . . . . . . . 1 . . . . . . . . . . . . . . . . . . . . . Tunneler 12 | 9 . 1 . . . 1 . . . . . . . . . . . . 1 . . . . . . . . . . . . . . . . . . . . . Hauler 11 | . 2 . 2 . . . 1 . 1 . . . . . . . . . 1 . . . . . . 1 . . . . 1 . . . . 1 . 1 . . Recycler 13 | 1 1 . 1 . . 1 2 . . . . 2 . 1 . . . . 3 . . . . . . . . . . . . . . . . . . 1 . . Minesweeper 4 | . . . . . . . . . . . . . . . 2 . . 1 . . . . . . . . 1 . . . . . . . . . . . . . Mechanic 4 | . 1 . . . . . . . . . . . . . . . . . 1 . 1 . . . . . . . . . . . . . . . . . . 1 Operator 15 | . . . 2 . . . 1 . 1 . . . . . . . . . . . . . 9 . . . . . . . . . . . . 2 . . . . Drone 1 | . . . . . . . . . . . . . . . . . . 1 . . . . . . . . . . . . . . . . . . . . . . Watcher 10 | . 2 . 1 . . . 1 . . . . 1 . . . . . . . 1 1 . . . . . . . . . . . . . . . 1 . . 2 Swarmer 119 | . 4 3 3 3 . 3 6 12 2 4 . 4 11 2 3 4 . 3 2 7 2 . . . 11 . 1 5 1 1 . 5 . 4 10 . 3 . . . Cutter 1 | . . . . . . . . . . . . . . . . . . . . . . . . . . . . . . . . 1 . . . . . . . . Saboteur 5 | . . . . . . . . . . . . . 1 . . . . . . . . . . . . . . . 1 . . . . . . . 3 . . . Grunt 179 | . 9 4 10 5 . 3 13 10 8 2 5 4 13 1 9 . . 3 2 15 8 . . . 6 1 5 . 6 2 . 12 . . 11 . 6 . 6 . Brawler 20 | . . . 1 . . . . 1 2 . . . 1 1 . . . . . . 1 . . . 9 . . . 3 . . . . . 1 . . . . . Duelist 9 | . . . 1 . . . . . . . . . . . . . . . 1 . 2 . . . 1 . . . 2 . . . . . . . 2 . . . Protector 3 | . . . . . . . . . . . . . . . . . . . . . . . . . . . . . 3 . . . . . . . . . . . Sentry 65 | . . . 8 . . . 6 3 . 8 2 2 2 . . . . . . 6 5 . 2 . 2 . 2 . . 1 3 . . 1 5 . 3 . 2 2 Demolisher 1 | . . . . . . . . . . . . . . . . . . . . . . . . . . . . . 1 . . . . . . . . . . . Specialist 10 | . . . . . . . . . . . . . . . . . . . . . 1 . . . 4 . . . 1 . . 3 . . 1 . . . . . Hunter 36 | . . . . . . . . . . . . 1 1 . 1 . . 2 . 6 1 . . . . . . . 4 . 4 5 . 2 2 . . . 3 4 Programmer 42 | . . . . . . . . . . 3 . 6 . 1 . . . 1 3 . . . . . 1 . . . 2 . 3 6 . . 4 . 6 . 2 4 Heavy 1 | . . . . . . . . . . . . . . . . . . . . . . . . . . . . . . . . . . 1 . . . . . . Behemoth 4 | . . . . . . . . . . . . . . . . . . 1 . 1 1 . . . . . . . . . . . . . 1 . . . . . Cetus Guard 3 | . . . . . . . . . . . . . . . . . . . . . . 3 . . . . . . . . . . . . . . . . . . Combat Programmer 2 | . . . . . . . . . . . . . . . . . . . . . . . . . . . . . . . . . . . . . . . . 2 Striker 2 | . . . . . . . . . . . . . . . . . . . . . . . . . . . . . 1 . . . . . . . . . . 1 Executioner 2 | . . . . . . . . . . . . . . . . . . . . . . . . . . . . . . . . . . . . . . 1 . 1 Alpha 7 2 | . . . . . . . . . . . . . . . . . . . . . . . . . . . . . . . . . . . . . . . . 2 Samaritan 1 | . . . . . . . . . . . . . . . . . . . . . . . . . . . . 1 . . . . . . . . . . . . Thug 3 | . . 1 . . . . . . . . . . . . . . . . . . 1 . . . . . . . 1 . . . . . . . . . . . Savage 1 | . . . . . . . . . . . . . . . . . . . . . . . . . . . 1 . . . . . . . . . . . . . Butcher 1 | . . . . . . . . . . . . . . . . . . . . . 1 . . . . . . . . . . . . . . . . . . . Guerrilla 1 | . . . . . . . . . . . . . . . . . . . . . 1 . . . . . . . . . . . . . . . . . . . Best Kill Streak 12 | 2 3 3 6 3 . 4 6 4 3 4 3 4 4 3 4 4 . 3 5 7 10 2 3 . 12 2 6 5 8 3 2 5 . 4 7 1 6 2 3 7 Combat Bots Only 12 | . 3 3 5 3 . 3 6 4 3 4 3 4 4 2 4 4 . 3 3 7 9 2 2 . 12 1 6 5 8 3 2 5 . 4 7 . 6 1 3 6 Max Kills in Single Turn 11 | 1 1 1 3 1 . 2 2 4 1 4 1 1 3 1 2 2 . 2 1 3 11 1 1 . 3 1 1 4 2 1 1 4 . 3 3 1 2 1 1 2 Gunslinging 1 | . . . . . . 1 1 1 . . . . . . . . . . . . . . . . . . . . . . . . . . . . 1 . . . Exploded 7 | . . . . . . . 2 4 . 4 . 1 3 . 2 . . 2 1 3 7 . . . 3 . 1 4 1 . . 4 . 3 3 . 2 . . . Melee 1 | . . . . . . . . . . . . . . . . . . 1 1 1 . . . . . . . . 1 . . . . . . . 1 . . . Uniques/NPCs Destroyed 1 | . . . . . . . . . . . . . . . . . . . . . . . . . . . . . . . . . . . . . . . . 1 MAIN.C (-1/Command) Combat | -11 -10 -10 -9 -9 -9 -8 -8 -8 -8 -8 -8 -7 -7 -7 -7 -7 -7 -6 -6 -6 -6 -6 -6 -6 -6 -5 -5 -5 -5 -4 -4 -4 -4 -4 -4 -3 -3 -2 -1 -1 -------- Run | Yrd Mat Min Mat Min Exi Min Mat Gar Mat Gar Mat Fac Gar Fac Low Low Dat Pro Fac Gar Ext Cet Arc Hub Gar Fac Upp Upp War Pro Fac Gar Fac DSF Gar Res Arm Res Acc Com Hostile Shots Fired 2943 | . 64 40 88 13 . 11 84 59 53 117 22 95 158 26 36 9 . 112 74 350 68 28 3 . 101 12 29 5 67 15 66 361 . 63 291 10 115 4 132 162 Missed 895 | . 10 8 23 3 . 4 21 12 15 25 10 32 61 9 13 2 . 34 7 116 27 9 1 . 40 4 8 . 20 6 22 126 . 20 85 5 39 2 39 37 Intercepted 5 | . . . . . . . . . . . . . . . . . . . . . . . . . . . . . . . . . . . . . . . . 5 Hits 2048 | . 54 32 65 10 . 7 63 47 38 92 12 63 97 17 23 7 . 78 67 234 41 19 2 . 61 8 21 5 47 9 44 235 . 43 206 5 76 2 93 125 Melee 21 | . . . 2 . . . . . . . . . 3 . . . . . 9 . 1 . . . . . . . . . . . . . . . 5 . . 1 Projectile 2027 | . 54 32 63 10 . 7 63 47 38 92 12 63 94 17 23 7 . 78 58 234 40 19 2 . 61 8 21 5 47 9 44 235 . 43 206 5 71 2 93 124 AOE 7 | . . . . . . . . . . . . . . . . . . . . . 2 . . . . . . . . . . . . . . . . . . 5 Critical Strikes 96 | . 1 1 1 . . . 3 . . 5 1 1 2 . . . . 1 8 4 1 5 . . 1 . 1 . 4 1 2 12 . 3 12 . 6 2 4 14 Actively Blocked 63 | . . . . . . . . . . . . . . . . . . . 8 4 . 5 . . . . 1 . . . 2 12 . 3 12 . . 1 1 14 Part Disruptions 1 | . . . . . . . . . . . . . . . . . . . . . . . . . . . . . . . . . . . . . . . . 1 Damage Taken 36049 | . 659 386 855 112 . 96 1034 692 481 1237 192 994 991 566 402 116 . 1234 1271 3104 645 419 74 172 949 161 476 44 739 97 503 4216 . 806 4127 328 1866 101 2108 3796 Core 3009 | . 125 61 74 11 . 18 203 102 20 141 18 91 67 47 19 34 . 140 191 279 21 27 . . 143 . 25 . 23 11 17 384 . 19 258 24 24 . 92 300 Absorbed by Shields 2240 | . . . . . . . . 4 . 64 . . 109 . . . . . 95 42 144 77 . . . . . 18 401 91 108 . . 316 485 . . . . 286 Reduced by Siege Mode 369 | . . . . . . . . . . . . . . . . . . . . . . . . . . . . . . . . . . 18 135 . . . 116 100 Redirected to Shielding 16 | . . . . . . . . . . . . . 16 . . . . . . . . . . . . . . . . . . . . . . . . . . . Ignored by Resistances 1153 | . . . . . . . 6 . 50 68 . . . . . . . . 116 . . . . . 80 . 49 29 242 18 224 271 . . . . . . . . Regen/Repaired (Parts) 3478 | . 101 . 58 . . . 67 . . . . 156 . . . . . . . . . . . . . 432 . . 236 . 553 . . . . 1328 . 6 . 541 Core Remaining (%) 62 | 100 . 25 . . . 74 . . . . 12 . . . . . . 43 . . . . . . 22 . . . . 94 . . . . 41 . 96 100 . 75 Volleys Fired 1408 | 26 75 32 66 10 . 10 61 62 40 50 12 55 81 19 30 3 . 25 9 61 39 15 26 5 76 13 17 28 52 13 24 85 . 13 87 14 58 15 36 65 Largest 4 | 2 2 2 3 3 . 3 3 3 3 3 3 3 3 3 3 3 . 3 3 3 3 3 3 3 3 3 3 3 3 3 4 4 . 3 4 4 4 4 4 4 Hottest 369 | 70 100 85 140 154 . 154 167 163 163 158 135 152 195 197 149 168 . 168 184 268 244 369 240 209 209 190 155 145 195 195 283 295 . 200 308 317 308 315 315 344 Shots Fired 3481 | 52 131 55 190 30 . 30 177 137 115 104 36 123 156 43 76 11 . 61 20 105 115 34 72 14 143 28 47 30 154 33 90 216 . 31 200 49 199 29 116 229 Gun 2663 | 52 130 55 190 30 . 30 176 134 65 29 24 27 46 12 10 4 . 25 3 73 114 34 72 14 133 28 44 3 153 30 90 147 . 13 121 46 184 17 105 200 Cannon 729 | . . . . . . . . . 50 74 12 92 100 30 64 7 . 31 15 21 . . . . . . . 25 1 3 . 56 . 17 70 3 13 8 11 26 Launcher 73 | . . . . . . . 1 3 . 1 . 4 10 1 2 . . 5 2 11 1 . . . 10 . 3 2 . . . 5 . 1 9 . 2 . . . Special 16 | . 1 . . . . . . . . . . . . . . . . . . . . . . . . . . . . . . 8 . . . . . 4 . 3 Kinetic 1326 | 26 66 39 124 13 . 10 91 41 38 29 24 92 42 12 45 4 . 22 9 17 . 8 25 5 34 11 29 2 51 10 24 66 . 19 72 19 100 2 25 80 Thermal 1897 | 26 65 7 66 17 . 20 85 93 77 74 12 27 104 30 29 7 . 34 9 63 114 26 47 9 99 17 15 26 103 23 60 102 . . 29 25 97 23 91 146 Explosive 78 | . . . . . . . 1 3 . 1 . 4 10 1 2 . . 5 2 11 1 . . . 10 . 3 2 . . . 10 . 1 9 . 2 . . . Electromagnetic 170 | . . 9 . . . . . . . . . . . . . . . . . 14 . . . . . . . . . . 6 35 . 11 90 5 . . . . Robot Hit Streak 35 | 9 10 5 16 10 . 13 19 12 14 12 13 9 19 4 9 6 . 9 8 11 11 11 7 4 12 9 9 11 29 7 18 18 . 8 13 6 21 8 29 35 Robot Miss Streak 6 | 3 5 2 5 1 . 2 3 4 3 5 2 5 6 4 4 3 . 5 1 5 3 2 3 2 3 2 2 . 3 5 2 3 . 4 5 4 3 3 2 5 Penetration Max 2 | . . . . . . . . . . . . . . . . . . . . 1 . 1 . . 1 1 . . 2 . 1 1 . 1 1 . 1 1 1 2 Secondary Targets 49 | . . 1 2 1 . 1 3 8 . . . . . . . . . . . 1 1 . . . . . 2 . 8 1 2 5 . . 2 . 7 . 2 2 Max Gunslinging Chain 1 | . . 1 1 1 . 1 1 1 . . . . . . . . . . . 1 1 . . . . . 1 . 1 1 1 1 . . 1 . 1 . 1 1 Shots Hit Robots 2183 | 30 80 37 123 20 . 21 116 55 70 56 27 60 85 21 44 4 . 38 39 92 76 22 42 9 71 18 37 2 113 17 63 129 . 25 106 22 128 15 80 190 Core Hits 1341 | 14 39 18 66 11 . 12 58 38 26 24 19 47 89 9 33 7 . 42 17 91 75 8 22 2 55 4 31 6 59 8 29 88 . 20 94 8 51 9 36 76 Critical Kills 23 | . . 1 . . . . . . . 1 . . . . . . . . 1 1 . 1 1 . 2 1 3 1 4 . 1 3 . . . . 1 . . 1 Critical Parts Destroyed 52 | . 1 . . . . . 1 . . . . . . . . . . . 2 6 . 1 . 1 4 3 3 . 18 1 3 4 . . . 1 . . . 3 Critical Strikes 119 | . 7 1 1 2 . 1 5 1 . 1 . 2 1 . 1 . . 1 3 11 5 2 1 1 6 6 8 1 22 1 5 10 . . 2 1 4 . . 6 Burn 27 | . 6 . . 2 . 1 4 1 . . . . . . . . . . . 1 5 . . . . 2 . . . . 1 1 . . . . 3 . . . Destroy 71 | . 1 1 1 . . . 1 . . 1 . . . . . . . . . 1 . 2 1 1 6 4 8 1 22 1 4 7 . . . 1 1 . . 6 Blast 8 | . . . . . . . . . . . . 2 1 . 1 . . 1 . . . . . . . . . . . . . 1 . . 2 . . . . . Smash 9 | . . . . . . . . . . . . . . . . . . . 3 6 . . . . . . . . . . . . . . . . . . . . Sever 4 | . . . . . . . . . . . . . . . . . . . . 3 . . . . . . . . . . . 1 . . . . . . . . Melee Attacks 110 | . . . 1 . . . 1 4 . . . . . 5 . 2 . . 39 57 . . 1 . . . . . . . . . . . . . . . . . Impact 58 | . . . 1 . . . 1 4 . . . . . 5 . 2 . . 14 31 . . . . . . . . . . . . . . . . . . . . Slashing 51 | . . . . . . . . . . . . . . . . . . . 25 26 . . . . . . . . . . . . . . . . . . . . Piercing . | . . . . . . . . . . . . . . . . . . . . . . . . . . . . . . . . . . . . . . . . . Sneak Attacks 10 | . . . . . . . . . . . . . . . . . . . 7 2 . . 1 . . . . . . . . . . . . . . . . . Combat Hostiles 2 | . . . . . . . . . . . . . . . . . . . . 2 . . . . . . . . . . . . . . . . . . . . Follow-up Attacks 25 | . . . . . . . . . . . . . . . . . . . 8 17 . . . . . . . . . . . . . . . . . . . . Damage Inflicted 68746 | 337 994 465 1954 382 . 363 2230 1439 1297 1471 502 2031 3183 585 1318 143 . 1672 2077 4870 3600 651 1218 219 3869 551 1254 393 2643 387 1663 4948 . 1251 5480 504 4037 460 2607 5698 Guns 39109 | 337 987 434 1954 357 . 363 2071 1044 655 305 288 321 824 107 38 35 . 448 81 1124 2030 651 1218 219 1633 551 642 8 2629 387 1647 2272 . 305 1187 504 3650 416 2607 4780 Cannons 12151 | . . . . . . . . . 642 976 213 1233 1195 379 880 108 . 565 385 255 . . . . . . . . . . . 1040 . 631 2533 . 178 44 . 894 Explosions 14131 | . . . . . . . 135 395 . 190 . 442 1155 99 400 . . 648 393 1826 1508 . . . 2236 . 612 385 . . . 1436 . 315 1760 . 196 . . . Melee 2883 | . . . . . . . . . . . . . . . . . . . 1218 1665 . . . . . . . . . . . . . . . . . . . . Ramming 272 | . 7 31 . 25 . . 24 . . . 1 35 9 . . . . 11 . . 62 . . . . . . . 14 . 16 . . . . . 13 . . 24 Kinetic 19724 | 187 438 294 1322 156 . 125 878 350 322 305 354 1233 489 145 443 35 . 474 285 123 . 186 314 84 550 281 399 8 668 123 354 1183 . 668 2174 190 1898 95 413 2178 Thermal 29934 | 150 549 51 632 201 . 238 1193 694 975 976 147 321 1530 341 475 108 . 539 181 1001 2030 465 904 135 1083 270 243 . 1961 264 1168 1930 . . 922 272 1930 365 2194 3496 Explosive 13253 | . . . . . . . 135 395 . 190 . 442 1155 99 400 . . 648 393 1826 1508 . . . 2236 . 612 385 . . . 1186 . 315 1132 . 196 . . . Electromagnetic 2480 | . . 89 . . . . . . . . . . . . . . . . . 255 . . . . . . . . . . 125 449 . 268 1252 42 . . . . Impact 1452 | . . . . . . . . . . . . . . . . . . . 573 879 . . . . . . . . . . . . . . . . . . . . Slashing 1631 | . . . . . . . . . . . . . . . . . . . 645 786 . . . . . . . . . . . 200 . . . . . . . . Piercing . | . . . . . . . . . . . . . . . . . . . . . . . . . . . . . . . . . . . . . . . . . Highest Corruption 17 | . . 9 . . . . 1 1 3 6 6 9 10 11 11 11 11 11 5 6 14 14 14 . 1 2 2 2 3 3 4 12 12 12 17 . 2 . 1 11 Average Corruption 6 | . . 9 . . . . 1 1 1 5 6 6 9 10 11 11 11 11 2 6 7 14 8 . 1 1 2 2 1 3 3 9 12 12 15 . 1 . 1 4 Corruption Purged 20 | . . . . . . . 1 . . . . . . . . . . . 5 . . . 14 . . . . . . . . . . . . . . . . . Corruption Blocked . | . . . . . . . . . . . . . . . . . . . . . . . . . . . . . . . . . . . . . . . . . Effects 765 | . . . . . . . 12 11 10 38 15 39 60 44 66 38 5 65 6 18 40 17 7 . 8 5 22 7 6 11 7 56 3 17 85 . 3 . 8 36 Message Errors 173 | . . . . . . . 3 2 1 6 4 8 14 8 15 9 1 20 2 3 8 3 2 . 3 . 7 . . 5 3 14 . 6 14 . 2 . 1 9 Matter Fused 180 | . . . . . . . 4 . 2 13 4 12 19 11 15 8 1 5 1 3 10 4 1 . 1 2 3 1 1 1 3 15 1 3 26 . 1 . 1 8 Heat Flow Errors 91 | . . . . . . . 2 1 2 2 3 3 4 6 8 2 1 11 1 5 6 3 2 . 1 . 3 1 2 2 . 7 . 1 8 . . . 2 2 Energy Discharges 94 | . . . . . . . 1 3 2 7 2 5 7 4 5 6 2 13 1 3 2 2 . . 1 1 2 2 1 1 . 3 2 3 7 . . . 1 5 Parts Rejected 7 | . . . . . . . . . 1 . . 1 . 1 . . . . . . . 1 . . . . . . . . . . . 1 1 . . . . 1 Parts Fused 7 | . . . . . . . . . 1 . . . . 2 . . . . . . . . . . . . 1 1 . . . . . . 1 . . . . 1 Data Loss (minor) 108 | . . . . . . . 1 3 . 7 1 5 8 8 13 6 . 12 1 3 5 . 1 . 2 1 3 . . . . 7 . 1 12 . . . 1 7 Data Loss (major) 32 | . . . . . . . 1 . 1 2 1 . 4 2 2 4 . 2 . 1 2 1 . . . . 1 . . 2 1 3 . . 1 . . . 1 . Misfires 35 | . . . . . . . . . . . . 4 3 1 6 2 . 1 . . 3 . . . . 1 1 . 1 . . 4 . . 6 . . . 1 1 Alerts 14 | . . . . . . . . . . . . 1 1 1 2 1 . 1 . . 1 . . . . . . 2 . . . . . 1 3 . . . . . Misdirections 4 | . . . . . . . . . . . . . . . . . . . . . . . 1 . . . . . . . . . . 1 2 . . . . . Weapon Failures 20 | . . . . . . . . 2 . 1 . . . . . . . . . . 3 3 . . . . 1 . 1 . . 3 . . 4 . . . . 2 Overload Shots 3 | . . . . . . . . . . . . . . . . . . . . . . 1 1 . . . . . 1 . . . . . . . . . . . Overflow Damage 1149 | . . . . . . . . . . 15 . 14 . 1 24 . . 25 518 339 13 . . . 10 . . 20 . . . 52 . 25 38 . 55 . . . Projectiles 167 | . . . . . . . . . . 15 . 14 . 1 24 . . 13 22 15 . . . . . . . . . . . . . . 35 . 28 . . . Explosions 234 | . . . . . . . . . . . . . . . . . . 12 48 37 . . . . 10 . . 20 . . . 52 . 25 3 . 27 . . . Melee 748 | . . . . . . . . . . . . . . . . . . . 448 287 13 . . . . . . . . . . . . . . . . . . . Knockbacks 34 | . . . . . . . . . . . 4 12 4 . 6 . . . 3 . . . . . . . . . . . . 3 . . 1 . . . . 1 Impact 3 | . . . . . . . . . . . . . . . . . . . 3 . . . . . . . . . . . . . . . . . . . . . Kinetic 28 | . . . . . . . . . . . 4 11 3 . 6 . . . . . . . . . . . . . . . . 2 . . 1 . . . . 1 Secondary 3 | . . . . . . . . . . . . 1 1 . . . . . . . . . . . . . . . . . . 1 . . . . . . . . Self-Inflicted Damage 757 | . 80 . . . . . 36 67 . . . 80 . 79 18 . . 26 101 80 92 . . . 22 . 9 . . . . 26 . 21 20 . . . . . Shots 26 | . 2 . . . . . 1 1 . . . 1 . 1 1 . . 2 3 4 4 . . . 1 . 1 . . . . 1 . 1 2 . . . . . Rammed 28 | . 3 6 . 6 . . 1 . . . 1 3 1 2 . . . 1 . . . . . . . . . . 1 . 2 . . . . . . . . 1 Targets Rammed 34 | . 3 6 . 6 . . 1 . . . 1 3 1 2 . . . 2 . . 3 . . . . . . . 2 . 2 . . . . . 1 . . 1 Kicked 3 | . . . . . . . . . . . . . . . . . . . . . 3 . . . . . . . . . . . . . . . . . . . Crushed 3 | . . . . . . . . . . . . . . . . . . 1 . . . . . . . . . . 1 . . . . . . . 1 . . . Highest Temperature 400 | 54 262 201 280 257 . 239 331 352 211 298 187 254 305 363 239 148 174 311 377 400 353 111 210 . 155 . 364 28 155 212 304 309 . 182 183 353 177 81 267 215 Average Temperature 87 | 18 77 82 90 96 . 113 83 96 69 105 34 45 110 101 65 74 95 113 171 164 96 51 97 . 56 . 112 17 69 71 103 114 . 24 45 100 29 42 61 27 Received Heat Transfer 6131 | . 264 186 315 48 . 36 414 297 270 285 99 117 320 36 108 . . 228 261 450 162 9 9 12 189 . 162 6 172 33 45 453 . . 432 . 292 18 270 133 Effects 19 | . 1 . 4 . . . 2 5 . 2 . . . 3 . . . . . 1 . . . . . . . . . . . 1 . . . . . . . . Energy Bleed 6 | . 1 . 1 . . . . . . 2 . . . . . . . . . 1 . . . . . . . . . . . 1 . . . . . . . . Interference 12 | . . . 3 . . . 2 4 . . . . . 3 . . . . . . . . . . . . . . . . . . . . . . . . . . Short Circuit 1 | . . . . . . . . 1 . . . . . . . . . . . . . . . . . . . . . . . . . . . . . . . . Siege Activations 6 | . . . . . . . . . . . . . . . . . . . . . . . . . . . . . . . . . . 1 2 . . . 1 2 Total Turns 192 | . . . . . . . . . . . . . . . . . . . . . . . . . . . . . . . . . . 7 51 . . . 55 79 Longest Duration 55 | . . . . . . . . . . . . . . . . . . . . . . . . . . . . . . . . . . 7 35 . . . 55 44 Martial Activations . | . . . . . . . . . . . . . . . . . . . . . . . . . . . . . . . . . . . . . . . . . Shielding Activations . | . . . . . . . . . . . . . . . . . . . . . . . . . . . . . . . . . . . . . . . . . Robots Disrupted . | . . . . . . . . . . . . . . . . . . . . . . . . . . . . . . . . . . . . . . . . . Combat Hostiles . | . . . . . . . . . . . . . . . . . . . . . . . . . . . . . . . . . . . . . . . . . Robots Corrupted 11 | . . . . . . . . . . . . . . . . . . . . 5 . . . . . . . . . . . 2 . 2 2 . . . . . Combat Hostiles 11 | . . . . . . . . . . . . . . . . . . . . 5 . . . . . . . . . . . 2 . 2 2 . . . . . Parts Fried 30 | . . 1 . . . . . . . . . . . . . . . . . 12 2 . . . . . . . . . 3 2 . 4 6 . . . . . Impact Corruptions 16 | . . . . . . . . . . . . . . . . . . . 7 8 1 . . . . . . . . . . . . . . . . . . . Robots Melted 8 | . . . . . . . . . . . . . . . . . . . . . 2 2 . . . 1 . . . . . . . . . . 1 . 1 1 Combat Hostiles 7 | . . . . . . . . . . . . . . . . . . . . . 2 2 . . . . . . . . . . . . . . 1 . 1 1 Parts Melted 96 | . 3 . . 1 . 1 4 1 2 5 . . 1 . . . . . . 4 11 1 3 . 3 . 1 . 14 . 8 3 . . . 2 9 1 7 11 Heat Transferred 45473 | 444 2036 111 1213 555 . 555 2479 1406 1702 1443 120 260 1988 622 703 148 . 855 272 1904 4154 821 1160 185 1573 698 550 . 2480 407 1739 2604 . . 961 444 2548 379 2405 3549 Parts Sabotaged 6 | . . . . . . . . . . . . . 6 . . . . . . . . . . . . . . . . . . . . . . . . . . . Parts Stolen . | . . . . . . . . . . . . . . . . . . . . . . . . . . . . . . . . . . . . . . . . . Parts Stripped . | . . . . . . . . . . . . . . . . . . . . . . . . . . . . . . . . . . . . . . . . . Power Chain Reactions 6 | . 1 . . . . . . . . . . . . . . . . . . . . . . . . . . . . . . 2 . . 3 . . . . . Alert | -11 -10 -10 -9 -9 -9 -8 -8 -8 -8 -8 -8 -7 -7 -7 -7 -7 -7 -6 -6 -6 -6 -6 -6 -6 -6 -5 -5 -5 -5 -4 -4 -4 -4 -4 -4 -3 -3 -2 -1 -1 ------- Run | Yrd Mat Min Mat Min Exi Min Mat Gar Mat Gar Mat Fac Gar Fac Low Low Dat Pro Fac Gar Ext Cet Arc Hub Gar Fac Upp Upp War Pro Fac Gar Fac DSF Gar Res Arm Res Acc Com Maximum Alert Level 5 | . . . 1 1 . . 1 4 3 3 2 1 4 3 . . . . 2 4 5 4 2 2 5 4 . . . . 2 4 3 3 5 4 3 2 1 2 Low Security (%) 40 | 100 100 100 62 90 . 100 85 . . . . 96 . . . . . . 62 8 . . 59 33 . . . . . . . . . . . . . 65 82 37 Level 1 12 | . . . 37 9 . . 14 15 . . . 3 17 . . . . . 26 8 . . 23 55 1 . . . . . 57 13 . . . . . 27 17 37 Level 2 14 | . . . . . . . . 27 95 32 100 . 14 32 . . . . 11 14 . . 17 11 9 . . . . . 42 21 . 39 8 . 36 7 . 25 Level 3 17 | . . . . . . . . 36 4 67 . . 44 67 . . . . . 41 63 89 . . 17 . . . . . . 25 100 60 18 2 63 . . . Level 4 11 | . . . . . . . . 19 . . . . 23 . . . . . . 26 32 10 . . 5 100 . . . . . 40 . . 34 97 . . . . Level 5 4 | . . . . . . . . . . . . . . . . . . . . . 3 . . . 66 . . . . . . . . . 38 . . . . . High Security . | . . . . . . . . . . . . . . . . . . . . . . . . . . . . . . . . . . . . . . . . . Max Security . | . . . . . . . . . . . . . . . . . . . . . . . . . . . . . . . . . . . . . . . . . Sterilizations 1 | . . . . . . . . . . . . . . . . . . . . . . . . . . . . . . . . . . 1 . . . . . . Peak Influence 2648 | 10 127 89 385 225 . 70 376 1455 714 1022 497 288 1381 829 . . . . 450 1481 1774 1114 564 536 2648 1390 . . . . 600 1551 814 728 2045 1466 910 449 271 483 Initial 1390 | . . 19 . 140 . . 10 240 709 440 497 203 205 724 . . . . 450 56 777 989 425 . 369 1390 . . . . 600 206 814 538 546 1149 709 449 . 146 Average 528 | . 45 11 165 152 . 9 104 765 634 780 455 86 810 728 . . . . 162 828 991 1022 192 249 1768 1302 . . . . 416 941 793 669 1392 1325 735 149 103 279 Influence Increases 25262 | 70 511 195 830 225 . 150 819 1245 365 632 181 732 1216 540 375 165 . 255 744 1605 1571 335 321 819 2379 305 244 110 897 97 983 1485 5 190 1599 633 911 63 580 880 Destroy 0b10 Robot/C 12260 | . 260 140 460 160 . 120 500 540 240 340 140 340 620 260 260 80 . 200 160 700 700 160 80 200 1000 120 200 100 700 80 200 760 . 160 740 260 560 20 260 440 Destroy 0b10 Robot/NC 590 | 70 35 10 45 . . 10 30 . 10 . . 25 10 15 10 . . 10 35 10 40 10 45 30 . 15 5 . 15 5 5 25 . 10 . 15 10 10 . 25 Destroy Leader 1666 | . 58 30 136 20 . 20 124 20 52 10 30 112 30 54 30 10 . 30 42 50 86 . . 86 70 22 10 10 . . 72 60 . 10 70 52 104 12 60 84 Allied During Kill 2550 | . . . . . . . . 5 . . . . 12 51 . . . . . . 605 119 125 316 738 58 29 . 167 12 2 21 . . 40 163 19 . . 68 Trap Triggered on 0b10 60 | . . . . . . . . . . . . . . . . . . . 10 . . . . . 20 10 . . . . . 10 . . . . 10 . . . Successful Hack 776 | . 49 . 17 . . . 16 50 19 . 9 68 14 11 . . . . 29 . 45 . . 10 12 57 . . . . 66 14 5 . 14 40 44 . 131 56 Select Force Hacks 190 | . . . 60 . . . 30 . . . . . . . . . . . . . . . . 100 . . . . . . . . . . . . . . . . Disable Machine 930 | . 45 . 45 15 . . 60 30 . 15 . 90 90 105 . . . . . . 15 30 60 45 15 15 . . . . 30 60 . . 30 45 75 . . 15 Anti-Garrison Action 2700 | . . . . . . . . 450 . 250 . . 350 . . . . . . 650 . . . . 350 . . . . . . 250 . . 400 . . . . . Destroy Structure 1620 | . 4 . 22 . . . 14 120 14 17 2 52 75 44 . . . . 18 165 20 16 11 32 99 8 . . . . 8 270 . 10 275 58 74 21 39 132 Advance Influence 1050 | . . . . . . . . . . . . . . . . . . . 450 . . . . . . . . . . . 600 . . . . . . . . . Lose Combat Pursuer 870 | . 60 15 45 30 . . 45 30 30 . . 45 15 . 75 75 . 15 . 30 60 . . . 75 . . . 15 . . 15 . . 30 . 15 . 90 60 Influence Decreases 24846 | 70 461 245 469 507 79 122 477 160 1142 288 755 886 129 1169 885 407 . 255 663 205 1284 1039 1385 291 259 1664 1136 410 267 824 688 229 787 231 282 1326 1407 919 351 693 Entered New Map 11515 | . . 31 . 221 79 . 18 130 746 238 525 245 89 657 279 47 . . . 25 704 779 639 . 159 1258 478 76 97 727 . 89 737 231 182 896 643 407 . 83 Time Decay 11148 | 70 451 204 459 286 . 112 439 . 386 . 230 641 . 482 586 360 . 235 413 . 440 190 726 251 . 386 598 334 120 84 368 . 50 . . 350 534 512 321 530 Search Patrol Dispatched 300 | . . . . . . . . . . . . . . . . . . . . . . . . . . . . . . . 300 . . . . . . . . . Lost Part 810 | . 10 10 10 . . 10 20 10 10 50 . . 40 10 20 . . 20 100 180 . 10 . . 20 . . . 10 . . 120 . . 60 20 . . 30 40 Lost Ally 773 | . . . . . . . . 20 . . . . . 20 . . . . . . 140 60 20 40 80 20 60 . 40 13 20 20 . . 40 60 80 . . 40 Purge Threat 300 | . . . . . . . . . . . . . . . . . . . 150 . . . . . . . . . . . . . . . . . 150 . . . Squads Dispatched 93 | . 1 . 4 . . . 3 . 3 . 1 5 . 10 . . . . 4 . 4 . . 8 . 9 . . . . 6 . . 1 . 7 8 1 8 10 Investigation 18 | . 1 . 3 . . . 1 . 1 . 1 . . 2 . . . . 1 . . . . 3 . . . . . . 1 . . . . 3 . . 1 . Extermination 22 | . . . . . . . . . . . . 5 . 2 . . . . 2 . . . . 1 . 2 . . . . 1 . . . . . 3 . 2 4 Reinforcement 26 | . . . 1 . . . 2 . . . . . . 2 . . . . 1 . 1 . . 2 . 2 . . . . 1 . . 1 . 4 2 1 2 4 Assault 18 | . . . . . . . . . 2 . . . . 1 . . . . . . 3 . . 2 . 5 . . . . . . . . . . 3 . . 2 Garrison 9 | . . . . . . . . . . . . . . 3 . . . . . . . . . . . . . . . . 3 . . . . . . . 3 . Intercept . | . . . . . . . . . . . . . . . . . . . . . . . . . . . . . . . . . . . . . . . . . Searches Triggered 2 | . . . . . . . . . . . . . . . . . . . . . . . . . . . . . . . 2 . . . . . . . . . Data Miner Redirects 9 | . . . . . . . . . . . . . . . . . . . . . . . . 2 . 3 . . . . . . . . . . 2 . . 2 Construction Impeded 3 | . . . . . . . . . . . . . . 1 . . . . 1 . . . . . . 1 . . . . . . . . . . . . . . Haulers Reinforced 2 | . . . . . . . . . . . . . . . . . . . . . . . . . . 1 . . . . . . . . . . . . 1 . Active Scanning Responses . | . . . . . . . . . . . . . . . . . . . . . . . . . . . . . . . . . . . . . . . . . Cargo Convoy Interrupts . | . . . . . . . . . . . . . . . . . . . . . . . . . . . . . . . . . . . . . . . . . Stealth | -11 -10 -10 -9 -9 -9 -8 -8 -8 -8 -8 -8 -7 -7 -7 -7 -7 -7 -6 -6 -6 -6 -6 -6 -6 -6 -5 -5 -5 -5 -4 -4 -4 -4 -4 -4 -3 -3 -2 -1 -1 --------- Run | Yrd Mat Min Mat Min Exi Min Mat Gar Mat Gar Mat Fac Gar Fac Low Low Dat Pro Fac Gar Ext Cet Arc Hub Gar Fac Upp Upp War Pro Fac Gar Fac DSF Gar Res Arm Res Acc Com Distress Signals 52 | . 6 . 3 . . . 2 . . . . 4 . . . . . . . 1 1 2 . 2 . . . . 3 . . . . . . 7 1 4 3 13 Communications Jammed 109 | . . . . . . . . . . . . . . . . . . . . . 15 . . 24 . . . . . . . . . . . . 45 25 . . Distress Signals 109 | . . . . . . . . . . . . . . . . . . . . . 15 . . 24 . . . . . . . . . . . . 45 25 . . Times Spotted 817 | . 25 8 29 10 . 4 40 24 23 14 7 31 25 17 19 9 . 14 11 38 44 10 11 14 41 6 16 6 88 7 16 42 . 8 40 16 31 19 21 33 Peak Tracking Total 12 | . 6 3 4 4 . 3 8 4 6 4 3 4 4 3 4 5 . 4 5 8 11 5 2 2 12 2 7 5 12 3 6 10 . 5 6 6 5 8 5 7 Tactical Retreats 42 | . 3 1 3 1 . . 2 1 2 . . 2 1 . 2 3 . 1 . 2 3 . . . 2 . . . 1 . . 1 . . 1 . 1 . 5 4 Traps | -11 -10 -10 -9 -9 -9 -8 -8 -8 -8 -8 -8 -7 -7 -7 -7 -7 -7 -6 -6 -6 -6 -6 -6 -6 -6 -5 -5 -5 -5 -4 -4 -4 -4 -4 -4 -3 -3 -2 -1 -1 ------- Run | Yrd Mat Min Mat Min Exi Min Mat Gar Mat Gar Mat Fac Gar Fac Low Low Dat Pro Fac Gar Ext Cet Arc Hub Gar Fac Upp Upp War Pro Fac Gar Fac DSF Gar Res Arm Res Acc Com Traps Triggered 32 | . . . . . . . 3 1 1 2 1 3 . 1 . . . . 5 1 3 . . . 2 1 . . 1 . . . . 1 2 1 2 . 1 . Indirectly . | . . . . . . . . . . . . . . . . . . . . . . . . . . . . . . . . . . . . . . . . . Trap Hack Attempts . | . . . . . . . . . . . . . . . . . . . . . . . . . . . . . . . . . . . . . . . . . Triggered . | . . . . . . . . . . . . . . . . . . . . . . . . . . . . . . . . . . . . . . . . . Disarmed . | . . . . . . . . . . . . . . . . . . . . . . . . . . . . . . . . . . . . . . . . . Reprogrammed . | . . . . . . . . . . . . . . . . . . . . . . . . . . . . . . . . . . . . . . . . . Reused 7 | . . . . . . . . . . . . . . . . . . 1 1 . . . . . 2 1 . . . . . 1 . . . . 1 . . . Traps Reconfigurated 17 | . . . . . . . 1 . . . . . 1 1 . . . . 5 1 . . . . 6 1 . . . . . . . . . . 1 . . . Traps Extracted 1 | . . . . . . . . . . . . . . . . . . 1 . . . . . . . . . . . . . . . . . . . . . . Installed 5 | . . . . . . . . . . . . . . . . . . 2 . . . . . . 1 . . . . . . 1 . . . . 1 . . . Triggered 7 | . . . . . . . . . . . . . . . . . . 1 1 . . . . . 2 1 . . . . . 1 . . . . 1 . . . Most Traps Carried 6 | . . . . . . . . . . . . . . . 4 4 4 4 4 4 4 4 4 4 4 3 6 6 6 6 6 6 5 5 5 5 5 4 4 4 Machines | -11 -10 -10 -9 -9 -9 -8 -8 -8 -8 -8 -8 -7 -7 -7 -7 -7 -7 -6 -6 -6 -6 -6 -6 -6 -6 -5 -5 -5 -5 -4 -4 -4 -4 -4 -4 -3 -3 -2 -1 -1 ---------- Run | Yrd Mat Min Mat Min Exi Min Mat Gar Mat Gar Mat Fac Gar Fac Low Low Dat Pro Fac Gar Ext Cet Arc Hub Gar Fac Upp Upp War Pro Fac Gar Fac DSF Gar Res Arm Res Acc Com Machines Disabled 106 | . 3 . 3 1 . . 4 13 . 3 . 6 11 7 . . . . . 9 3 2 4 3 6 1 . . 1 . 2 7 . . 8 3 5 . . 1 Max in Single Turn 2 | . 2 . 1 1 . . 1 2 . 1 . 2 1 1 . . . . . 2 . 1 1 . 1 1 . . 1 . 1 1 . . 2 1 1 . . . Garrison Access 8 | . . . . . . . . . . . . . . 1 . . . . . . . . . 1 . . . . . . . . . . . . . 3 3 . Garrison Relay 28 | . . . . . . . . 5 . 2 . . 5 . . . . . . 5 . . . . 5 . . . . . . 3 . . 3 . . . . . Phase Generator 3 | . . . . . . . . 1 . . . . . . . . . . . 1 . . . . . . . . . . . . . . 1 . . . . . Network Hub 3 | . . . . . . . . . . . . . . . . . . . . . . . . 3 . . . . . . . . . . . . . . . . Machines Repaired . | . . . . . . . . . . . . . . . . . . . . . . . . . . . . . . . . . . . . . . . . . Machines Dismantled . | . . . . . . . . . . . . . . . . . . . . . . . . . . . . . . . . . . . . . . . . . Machines Sabotaged 2 | . . . . . . . . . . . . . . . . . . . . . . . . 2 . . . . . . . . . . . . . . . . Overloaded Fab Kills . | . . . . . . . . . . . . . . . . . . . . . . . . . . . . . . . . . . . . . . . . . Hacking | -11 -10 -10 -9 -9 -9 -8 -8 -8 -8 -8 -8 -7 -7 -7 -7 -7 -7 -6 -6 -6 -6 -6 -6 -6 -6 -5 -5 -5 -5 -4 -4 -4 -4 -4 -4 -3 -3 -2 -1 -1 --------- Run | Yrd Mat Min Mat Min Exi Min Mat Gar Mat Gar Mat Fac Gar Fac Low Low Dat Pro Fac Gar Ext Cet Arc Hub Gar Fac Upp Upp War Pro Fac Gar Fac DSF Gar Res Arm Res Acc Com Machines Accessed 134 | . 8 . 10 . 2 . 12 5 5 1 3 10 3 6 1 1 4 . 4 2 4 . . 6 2 8 2 1 3 . 5 1 1 . 2 3 5 1 8 5 Terminals 82 | . 7 . 6 . . . 7 5 4 1 3 6 3 2 . . . . 2 2 4 . . 5 2 4 1 . . . 1 1 1 . 2 . 4 . 5 4 Fabricators 7 | . . . . . . . . . . . . 2 . . . . . . 1 . . . . . . 3 . . . . . . . . . . 1 . . . Repair Stations 11 | . 1 . 1 . . . 2 . . . . 1 . 1 . . . . . . . . . . . 1 . . . . 2 . . . . 1 . . . 1 Recycling Units 4 | . . . 2 . . . 2 . . . . . . . . . . . . . . . . . . . . . . . . . . . . . . . . . Scanalyzers 5 | . . . 1 . . . . . . . . . . 2 . . . . . . . . . . . . . . . . . . . . . 2 . . . . Garrison Access 12 | . . . . . . . 1 . 1 . . 1 . 1 . . . . 1 . . . . 1 . . . . . . 2 . . . . . . 1 3 . Total Hacks 404 | . 24 . 26 . 5 . 34 8 11 2 7 26 4 16 1 7 29 . 15 3 8 . . 19 7 32 5 1 6 . 21 1 2 . 5 9 25 1 31 13 Successful 217 | . 13 . 14 . 5 . 14 4 5 . 2 12 2 9 1 7 29 . 10 1 5 . . 7 1 13 5 1 6 . 6 1 1 . 1 3 18 1 15 5 Failed 187 | . 11 . 12 . . . 20 4 6 2 5 14 2 7 . . . . 5 2 3 . . 12 6 19 . . . . 15 . 1 . 4 6 7 . 16 8 Catastrophic 39 | . 1 . 1 . . . . 1 2 1 2 1 . 2 . . . . 1 2 1 . . 1 2 3 . . . . 5 . . . 2 3 1 . 7 . Database Lockouts . | . . . . . . . . . . . . . . . . . . . . . . . . . . . . . . . . . . . . . . . . . Manual 161 | . 14 . 17 . 1 . 23 3 6 1 4 12 . 2 . . . . 8 1 6 1 . 10 3 15 . . 2 . 3 . . . . . 11 . 13 5 Terminals 243 | . 21 . 19 . . . 24 8 8 2 7 18 4 5 . . . . 8 3 8 . . 15 7 14 4 . . . 9 1 2 . 5 . 16 . 25 10 Fabricators 34 | . . . . . . . . . . . . 4 . . . . . . 6 . . . . . . 15 . . . . . . . . . . 9 . . . Repair Stations 35 | . 3 . 2 . . . 5 . . . . 2 . 5 . . . . . . . . . . . 3 . . . . 7 . . . . 5 . . . 3 Recycling Units 5 | . . . 2 . . . 3 . . . . . . . . . . . . . . . . . . . . . . . . . . . . . . . . . Scanalyzers 12 | . . . 3 . . . . . . . . . . 5 . . . . . . . . . . . . . . . . . . . . . 4 . . . . Garrison Access 25 | . . . . . . . 2 . 3 . . 2 . 1 . . . . 1 . . . . 4 . . . . . . 5 . . . . . . 1 6 . Terminal Hacks 115 | . 5 . 3 . 5 . 2 4 3 . 2 5 2 2 1 7 29 . 3 1 1 . . 1 1 2 5 1 6 . 1 1 1 . 1 . 8 . 9 3 Record 32 | . . . . . 4 . . . . . . . . . . 7 11 . . . . . . . . . 4 . 6 . . . . . . . . . . . Part Schematic 14 | . 1 . 1 . . . . . . . . 1 . . . . 9 . . . . . . . . . . . . . . . . . . . 2 . . . Robot Schematic 7 | . . . . . . . . . . . . . . . . . 6 . . . . . . . . . . . . . 1 . . . . . . . . . Robot Analysis 1 | . . . . . . . . . . . . . . . . . . . . . . . . . . . . . . . . . . . . . 1 . . . Prototype ID Bank 5 | . . . . . . . . . . . . . . . . . 3 . . . 1 . . . . 1 . . . . . . . . . . . . . . Open Door 7 | . . . . . . . . 1 . . . . 1 . 1 . . . . . . . . . . . 1 1 . . . . . . . . 1 . . 1 Open DSF 1 | . . . . . . . . . . . . . . . . . . . . . . . . . . . . . . . . . 1 . . . . . . . Level Access Points 2 | . 1 . . . . . . . . . . . . . . . . . . . . . . . . . . . . . . . . . . . . . . 1 Branch Access Points 3 | . . . . . . . . . . . . . . 1 . . . . . . . . . . . 1 . . . . . . . . . . . . 1 . Emergency Access Points 4 | . . . 1 . . . . 1 . . . . . . . . . . . 1 . . . . . . . . . . . 1 . . . . . . . . Terminal Index 3 | . 1 . . . . . . . . . 1 . . . . . . . . . . . . . . . . . . . . . . . . . . . 1 . Repair Station Index 1 | . . . . . . . . . . . . . . . . . . . . . . . . . . . . . . . . . . . . . . . 1 . Garrison Index 2 | . . . . . . . . . 1 . . . . . . . . . . . . . . . . . . . . . . . . . . . . . 1 . Unreport Threat 2 | . . . . . . . . . . . . . . . . . . . 1 . . . . . . . . . . . . . . . . . 1 . . . Locate Traps 5 | . . . 1 . . . . . . . 1 2 . . . . . . . . . . . . . . . . . . . . . . . . 1 . . . Maintenance Status 4 | . . . . . . . . . 1 . . . . . . . . . 1 . . . . . . . . . . . . . . . . . . . 1 1 Surveillance Status 1 | . . . . . . . . . . . . . . . . . . . . . . . . . . . . . . . . . . . . . 1 . . . Patrol Status 1 | . . . . . . . . . . . . . . . . . . . . . . . . . . . . . . . . . . . . . 1 . . . Recall Investigation 2 | . . . . . . . . . . . . . . . . . . . 1 . . . . . . . . . . . . . . . . . . . 1 . Recall Extermination 2 | . . . . . . . . . . . . . . . . . . . . . . . . . . . . . . . . . . . . . . . 2 . Hauler Manifests 1 | . 1 . . . . . . . . . . . . . . . . . . . . . . . . . . . . . . . . . . . . . . . Registered Components 3 | . . . . . . . . . . . . 1 . 1 . . . . . . . . . . . . . . . . . . . . . . . . 1 . Zone Layout 6 | . 1 . . . . . 2 . 1 . . 1 . . . . . . . . . . . 1 . . . . . . . . . . . . . . . . Garrison Registry 2 | . . . . . . . . 1 . . . . . . . . . . . . . . . . . . . . . . . . . . 1 . . . . . Patrol Navigation 1 | . . . . . . . . . . . . . . . . . . . . . . . . . 1 . . . . . . . . . . . . . . . Security Stations 2 | . . . . . . . . 1 . . . . 1 . . . . . . . . . . . . . . . . . . . . . . . . . . . Proto ID Catalog 1 | . . . . . 1 . . . . . . . . . . . . . . . . . . . . . . . . . . . . . . . . . . . Fabricator Hacks 16 | . . . . . . . . . . . . 1 . . . . . . 3 . . . . . . 4 . . . . . . . . . . 8 . . . Network Status 2 | . . . . . . . . . . . . . . . . . . . 1 . . . . . . 1 . . . . . . . . . . . . . . Load Schematic 6 | . . . . . . . . . . . . . . . . . . . 1 . . . . . . 1 . . . . . . . . . . 4 . . . Build 8 | . . . . . . . . . . . . 1 . . . . . . 1 . . . . . . 2 . . . . . . . . . . 4 . . . Repair Station Hacks 21 | . 2 . 2 . . . 3 . . . . 2 . 2 . . . . . . . . . . . 2 . . . . 4 . . . . 2 . . . 2 Scan Component 11 | . 1 . 1 . . . 2 . . . . 1 . 1 . . . . . . . . . . . 1 . . . . 2 . . . . 1 . . . 1 Repair 10 | . 1 . 1 . . . 1 . . . . 1 . 1 . . . . . . . . . . . 1 . . . . 2 . . . . 1 . . . 1 Recycling Unit Hacks 1 | . . . . . . . 1 . . . . . . . . . . . . . . . . . . . . . . . . . . . . . . . . . Retrieve Components 1 | . . . . . . . 1 . . . . . . . . . . . . . . . . . . . . . . . . . . . . . . . . . Scanalyzer 6 | . . . 1 . . . . . . . . . . 4 . . . . . . . . . . . . . . . . . . . . . 1 . . . . Insert Component 4 | . . . 1 . . . . . . . . . . 2 . . . . . . . . . . . . . . . . . . . . . 1 . . . . Analyze 2 | . . . . . . . . . . . . . . 2 . . . . . . . . . . . . . . . . . . . . . . . . . . Garrison Access Hacks 11 | . . . . . . . 1 . 1 . . 1 . 1 . . . . 1 . . . . 1 . . . . . . 1 . . . . . . 1 3 . Unlock Access 6 | . . . . . . . 1 . 1 . . 1 . . . . . . 1 . . . . 1 . . . . . . 1 . . . . . . . . . Seal Access 5 | . . . . . . . . . . . . . . 1 . . . . . . . . . . . . . . . . . . . . . . . 1 3 . Unauthorized Hacks 47 | . 6 . 8 . . . 7 . 1 . . 3 . . . . . . 3 . 4 . . 5 . 5 . . . . . . . . . . 2 . 3 . Terminals 37 | . 6 . 6 . . . 6 . 1 . . 3 . . . . . . . . 4 . . 5 . 1 . . . . . . . . . . 2 . 3 . Assimilate 4 | . . . . . . . . . 1 . . . . . . . . . . . . . . 2 . 1 . . . . . . . . . . . . . . Botnet 13 | . 1 . 1 . . . 2 . . . . 3 . . . . . . . . 2 . . 1 . . . . . . . . . . . . 1 . 2 . Operators 2 | . . . . . . . . . . . . . . . . . . . . . . . . . . . . . . . . . . . . . 1 . 1 . Skim 16 | . 5 . 5 . . . 4 . . . . . . . . . . . . . 2 . . . . . . . . . . . . . . . . . . . Sabotage 2 | . . . . . . . . . . . . . . . . . . . . . . . . 2 . . . . . . . . . . . . . . . . Fabricators 7 | . . . . . . . . . . . . . . . . . . . 3 . . . . . . 4 . . . . . . . . . . . . . . Report 2 | . . . . . . . . . . . . . . . . . . . 1 . . . . . . 1 . . . . . . . . . . . . . . Prioritize 1 | . . . . . . . . . . . . . . . . . . . . . . . . . . 1 . . . . . . . . . . . . . . Liberate 2 | . . . . . . . . . . . . . . . . . . . 1 . . . . . . 1 . . . . . . . . . . . . . . Haulers 2 | . . . . . . . . . . . . . . . . . . . 1 . . . . . . 1 . . . . . . . . . . . . . . Repair Stations . | . . . . . . . . . . . . . . . . . . . . . . . . . . . . . . . . . . . . . . . . . Recycling Units 3 | . . . 2 . . . 1 . . . . . . . . . . . . . . . . . . . . . . . . . . . . . . . . . Tunnel 3 | . . . 2 . . . 1 . . . . . . . . . . . . . . . . . . . . . . . . . . . . . . . . . Scanalyzers . | . . . . . . . . . . . . . . . . . . . . . . . . . . . . . . . . . . . . . . . . . Garrison Access . | . . . . . . . . . . . . . . . . . . . . . . . . . . . . . . . . . . . . . . . . . Data Cores Recovered 4 | . . . . . . . . . 1 . . . . . . . . . . . . . . 1 . 2 . . . . . . . . . . . . . . Used 1 | . . . . . . . . . . . . . . . . . . . . . . . . . . 1 . . . . . . . . . . . . . . Hacking Detections 90 | . 6 . 7 . . . 8 5 3 1 3 10 2 4 . . . . 4 2 4 . . 5 1 4 . . . . 5 . 1 . 1 2 3 . 6 3 Full Trace Events 7 | . 1 . 1 . . . . . 1 1 . . . 1 . . . . 1 . . . . . . . . . . . 1 . . . . . . . . . Feedback Events 1 | . . . . . . . . . 1 . . . . . . . . . . . . . . . . . . . . . . . . . . . . . . . Corruption 1 | . . . . . . . . . 1 . . . . . . . . . . . . . . . . . . . . . . . . . . . . . . . Feedback Blocked . | . . . . . . . . . . . . . . . . . . . . . . . . . . . . . . . . . . . . . . . . . Robot Schematics Acquired 7 | . . . . . . . . . . . . . . . . . 6 . . . . . . . . . . . . . 1 . . . . . . . . . Robots Built 8 | . . . . . . . . . . . . . . . . . . . . . . . . . . 4 . . . . . . . . . . 4 . . . Authchips 3 | . . . . . . . . . . . . . . . . . . . . . . . . . . 1 . . . . . . . . . . 2 . . . Time 252 | . . . . . . . . . . . . . . . . . . . . . . . . . . 152 . . . . . . . . . . 100 . . . Total Robot Build Rating 40 | . . . . . . . . . . . . . . . . . . . . . . . . . . 20 . . . . . . . . . . 20 . . . Part Schematics Acquired 16 | . 1 . 1 . . . . . . . . 1 . 2 . . 9 . . . . . . . . . . . . . . . . . . . 2 . . . Parts Built 6 | . . . . . . . . . . . . 2 . . . . . . . . . . . . . . . . . . . . . . . . 4 . . . Authchips 2 | . . . . . . . . . . . . . . . . . . . . . . . . . . . . . . . . . . . . . 2 . . . Time 335 | . . . . . . . . . . . . 117 . . . . . . 152 . . . . . . . . . . . . . . . . . 66 . . . Total Part Build Rating 36 | . . . . . . . . . . . . 14 . . . . . . . . . . . . . . . . . . . . . . . . 22 . . . Parts Repaired 10 | . 1 . 1 . . . 1 . . . . 1 . 1 . . . . . . . . . . . 1 . . . . 2 . . . . 1 . . . 1 Time 503 | . 26 . 50 . . . 50 . . . . 38 . 88 . . . . . . . . . . . 108 . . . . 53 . . . . 54 . . . 36 Parts Recycled . | . . . . . . . . . . . . . . . . . . . . . . . . . . . . . . . . . . . . . . . . . Recycled Matter . | . . . . . . . . . . . . . . . . . . . . . . . . . . . . . . . . . . . . . . . . . Retrieved Matter . | . . . . . . . . . . . . . . . . . . . . . . . . . . . . . . . . . . . . . . . . . Retrieved Components 9 | . . . . . . . 9 . . . . . . . . . . . . . . . . . . . . . . . . . . . . . . . . . Parts Scanalyzed 3 | . . . 1 . . . . . . . . . . 2 . . . . . . . . . . . . . . . . . . . . . . . . . . Part Schematics Acquired 2 | . . . . . . . . . . . . . . 2 . . . . . . . . . . . . . . . . . . . . . . . . . . Parts Damaged 1 | . . . . . . . . . . . . . . 1 . . . . . . . . . . . . . . . . . . . . . . . . . . Bothacking | -11 -10 -10 -9 -9 -9 -8 -8 -8 -8 -8 -8 -7 -7 -7 -7 -7 -7 -6 -6 -6 -6 -6 -6 -6 -6 -5 -5 -5 -5 -4 -4 -4 -4 -4 -4 -3 -3 -2 -1 -1 ------------ Run | Yrd Mat Min Mat Min Exi Min Mat Gar Mat Gar Mat Fac Gar Fac Low Low Dat Pro Fac Gar Ext Cet Arc Hub Gar Fac Upp Upp War Pro Fac Gar Fac DSF Gar Res Arm Res Acc Com Used RIF Installer . | . . . . . . . . . . . . . . . . . . . . . . . . . . . . . . . . . . . . . . . . . Robots Hacked 8 | . . . . . . . . . . . . . . . . . . . . . . . 1 . . . . . . . . 1 . . . . . 4 . 2 Non-combat 1 | . . . . . . . . . . . . . . . . . . . . . . . . . . . . . . . . . . . . . . 1 . . Combat 4 | . . . . . . . . . . . . . . . . . . . . . . . 1 . . . . . . . . . . . . . . 3 . . Robot Hacks Applied 5 | . . . . . . . . . . . . . . . . . . . . . . . 1 . . . . . . . . . . . . . . 4 . . parse_system 5 | . . . . . . . . . . . . . . . . . . . . . . . 1 . . . . . . . . . . . . . . 4 . . Manual 3 | . . . . . . . . . . . . . . . . . . . . . . . . . . . . . . . . 1 . . . . . . . 2 Relay Couplers Released 119 | . . . . . . . . 20 . 8 . . 20 . . . . . . 20 . . . 1 19 . . . . . . 16 . . 13 . . 2 . . Machine Destruction 115 | . . . . . . . . 20 . 8 . . 20 . . . . . . 20 . . . 1 19 . . . . . . 12 . . 13 . . 2 . . Programmers 4 | . . . . . . . . . . . . . . . . . . . . . . . . . . . . . . . . 4 . . . . . . . . Fabnet Peak Effective % . | . . . . . . . . . . . . . . . . . . . . . . . . . . . . . . . . . . . . . . . . . Robots Rewired 25 | . . . . . . . . 2 . . . . . . . . . . . . 7 . . . 6 . . . 5 . . . . . 4 . . . . 1 Allies Hacked 2 | . . . . . . . . . . . . . . . . . . . . . . . . . . . . . . . 1 . . . . . 1 . . . Hacks Repelled . | . . . . . . . . . . . . . . . . . . . . . . . . . . . . . . . . . . . . . . . . . Allies | -11 -10 -10 -9 -9 -9 -8 -8 -8 -8 -8 -8 -7 -7 -7 -7 -7 -7 -6 -6 -6 -6 -6 -6 -6 -6 -5 -5 -5 -5 -4 -4 -4 -4 -4 -4 -3 -3 -2 -1 -1 -------- Run | Yrd Mat Min Mat Min Exi Min Mat Gar Mat Gar Mat Fac Gar Fac Low Low Dat Pro Fac Gar Ext Cet Arc Hub Gar Fac Upp Upp War Pro Fac Gar Fac DSF Gar Res Arm Res Acc Com Total Allies 56 | . . . . . . . . 2 . . . . 3 . . . . . . . 18 5 . . 6 4 . . 5 . . 1 . . 6 . 4 . . 2 Largest Group 14 | . . . . . . . . 2 . . . . 3 3 . . . . . . 14 8 8 6 6 7 4 . 5 3 2 1 . . 4 4 3 . . 1 Highest-Rated Group 683 | . . . . . . . . 40 . . . . 179 179 . . . . . . 558 683 683 514 384 292 165 . 286 177 128 116 . . 413 413 123 . . 219 Highest-Rated Ally 219 | . . . . . . . . 20 . . . . 95 92 . . . . . . 159 152 138 96 96 91 51 . 68 64 64 116 . . 119 119 95 . . 219 Initial Warlord ECA Mod 1131 | . . . . . . . . . 11 11 17 16 16 25 25 25 25 24 24 23 32 32 32 32 32 40 39 39 39 38 38 38 46 46 56 63 63 62 61 61 Warlord Squad Rendezvous 2 | . . . . . . . . . . . . . . . . . . . 1 . . . . . . 1 . . . . . . . . . . . . . . Muscle 1 | . . . . . . . . . . . . . . . . . . . . . . . . . . 1 . . . . . . . . . . . . . . Pyro 1 | . . . . . . . . . . . . . . . . . . . 1 . . . . . . . . . . . . . . . . . . . . . Total Orders 11 | . . . . . . . . 2 . . . . . . . . . . . . . . 3 . 3 . . . 2 . . . . . . . . . . 1 STAY 4 | . . . . . . . . 1 . . . . . . . . . . . . . . 2 . 1 . . . . . . . . . . . . . . . ROAM 1 | . . . . . . . . . . . . . . . . . . . . . . . . . 1 . . . . . . . . . . . . . . . FOLLOW 3 | . . . . . . . . 1 . . . . . . . . . . . . . . 1 . 1 . . . . . . . . . . . . . . . GUARD 2 | . . . . . . . . . . . . . . . . . . . . . . . . . . . . . 2 . . . . . . . . . . . AID 1 | . . . . . . . . . . . . . . . . . . . . . . . . . . . . . . . . . . . . . . . . 1 Ally Attacks 657 | . . . . . . . . 4 . . . . 10 42 . . . . . . 130 41 25 59 95 33 25 . 33 9 . 25 . . 10 40 47 . . 29 Total Damage 22664 | . . . . . . . . 202 . . . . 420 1006 . . . . . . 2788 1136 824 2117 3099 719 843 . 1782 171 . 958 . . 578 1757 1698 . . 2566 Kills 144 | . . . . . . . . 1 . . . . 2 11 . . . . . . 20 7 2 16 18 9 7 . 13 1 . 9 . . 2 13 7 . . 6 Allies Corrupted 2 | . . . . . . . . . . . . . . . . . . . . . 2 . . . . . . . . . . . . . . . . . . . Allies Melted 4 | . . . . . . . . . . . . . . . . . . . . . . . . . . . . . 1 . . . . . 1 . . 2 . . Intel | -11 -10 -10 -9 -9 -9 -8 -8 -8 -8 -8 -8 -7 -7 -7 -7 -7 -7 -6 -6 -6 -6 -6 -6 -6 -6 -5 -5 -5 -5 -4 -4 -4 -4 -4 -4 -3 -3 -2 -1 -1 ------- Run | Yrd Mat Min Mat Min Exi Min Mat Gar Mat Gar Mat Fac Gar Fac Low Low Dat Pro Fac Gar Ext Cet Arc Hub Gar Fac Upp Upp War Pro Fac Gar Fac DSF Gar Res Arm Res Acc Com Active Infowar (turns) 26989 | 948 1369 1643 1287 628 1357 285 . . . . . 2314 . 816 1691 1104 166 1261 262 323 649 . 111 595 478 . 1704 758 804 464 213 . . . . 20 1513 1673 1038 1515 Optics 1401 | . . . . . . . . . . . . . . . . . . . . . . . . 2 . . . . 7 . . . . . . 2 . 3 . 1387 Sensors 7079 | . . . . . . . . . . . . . . . 1588 1104 166 437 . . . . . . . . 1704 758 804 464 50 . . . . . . 4 . . Terrain 8258 | . . . . . . . . . . . . 2115 . 816 109 . . 824 252 . . . . . . . . . . . 163 . . . . 18 1473 1673 814 1 Seismic 7517 | 948 1369 1643 1287 628 1357 285 . . . . . . . . . . . . . . . . . . . . . . . . . . . . . . . . . . Machine Analysis 190 | . . . . . . . . . . . . 190 . . . . . . . . . . . . . . . . . . . . . . . . . . . . Triangulation 2 | . . . . . . . . . . . . . . . . . . . . . . . . . . . . . . . . . . . . . . . . 2 Jamming 7450 | . . . . . . . . . . . . 10 . . . . . . 10 323 649 . 111 595 478 . . . . . . . . . . . 1472 1662 867 1273 Robot Analysis Total 1 | . . . . . . . . . . . . . . . . . . . . . . . . . . . . . . . . . . . . . 1 . . . Derelict Logs Recovered 11 | . . 1 . . . . . . . . . . . . 2 2 . 2 . . . . . . . . 1 1 . 2 . . . . . . . . . . Drone Launches . | . . . . . . . . . . . . . . . . . . . . . . . . . . . . . . . . . . . . . . . . . Drone Recoveries . | . . . . . . . . . . . . . . . . . . . . . . . . . . . . . . . . . . . . . . . . . Exploration | -11 -10 -10 -9 -9 -9 -8 -8 -8 -8 -8 -8 -7 -7 -7 -7 -7 -7 -6 -6 -6 -6 -6 -6 -6 -6 -5 -5 -5 -5 -4 -4 -4 -4 -4 -4 -3 -3 -2 -1 -1 ------------- Run | Yrd Mat Min Mat Min Exi Min Mat Gar Mat Gar Mat Fac Gar Fac Low Low Dat Pro Fac Gar Ext Cet Arc Hub Gar Fac Upp Upp War Pro Fac Gar Fac DSF Gar Res Arm Res Acc Com Turns Passed 52408 | 998 1644 1755 1384 628 1357 1067 1795 1279 910 1210 487 2365 1569 1253 1832 1104 166 1887 1078 2211 1097 394 3672 595 1528 913 1903 758 1481 515 841 1688 101 323 1944 794 1513 1673 1181 1515 Spaces Moved 25720 | 200 726 1015 653 361 835 635 985 632 455 421 249 1296 785 650 1014 647 99 1029 663 1086 629 187 587 325 756 510 1092 424 711 289 422 891 66 120 887 424 687 955 585 737 Core 207 | 4 . . . . . . . . . . . . . . . . . . . 7 . . 194 . . . . . 2 . . . . . . . . . . . Treads 22621 | 196 726 1015 653 361 835 635 354 632 455 421 249 1296 785 650 1014 647 99 1029 133 10 . 154 393 325 756 510 1092 424 709 289 422 891 66 120 887 424 687 955 585 737 Legs 1235 | . . . . . . . . . . . . . . . . . . . 4 569 629 33 . . . . . . . . . . . . . . . . . . Wheels 1657 | . . . . . . . 631 . . . . . . . . . . . 526 500 . . . . . . . . . . . . . . . . . . . . Hover . | . . . . . . . . . . . . . . . . . . . . . . . . . . . . . . . . . . . . . . . . . Flight . | . . . . . . . . . . . . . . . . . . . . . . . . . . . . . . . . . . . . . . . . . Fastest Speed 50 | 50 160 160 160 160 160 160 100 160 155 155 163 163 160 160 163 163 163 161 95 115 120 120 160 160 160 160 160 160 160 160 160 135 135 135 135 158 160 160 163 158 Average Speed 168 | 157 160 160 160 160 160 160 143 160 159 157 163 163 163 165 165 163 163 161 121 158 127 152 586 160 160 160 160 160 165 160 160 143 135 181 174 160 165 161 163 162 Slowest Speed 1900 | 160 160 160 240 160 160 160 240 240 160 163 163 163 250 250 166 163 163 241 260 1350 190 160 1450 160 160 160 240 160 1900 160 240 215 135 295 242 166 166 163 163 163 Overloaded Moves . | . . . . . . . . . . . . . . . . . . . . . . . . . . . . . . . . . . . . . . . . . Propulsion Burnouts . | . . . . . . . . . . . . . . . . . . . . . . . . . . . . . . . . . . . . . . . . . Robots Hopped . | . . . . . . . . . . . . . . . . . . . . . . . . . . . . . . . . . . . . . . . . . Potential Cave-ins 1 | . . . . . . . . . . . . . . . . . . 1 . . . . . . . . . . . . . . . . . . . . . . Cave-ins Triggered . | . . . . . . . . . . . . . . . . . . . . . . . . . . . . . . . . . . . . . . . . . Exploration Rate (%) 58 | 9 79 102 56 58 92 100 78 84 50 43 25 39 85 16 89 72 71 86 21 89 81 68 98 36 77 17 95 56 84 43 11 73 2 81 85 16 26 37 19 29 Regions Visited 40 Branch Regions 18 Pre-discovered Areas 10 | . 2 . 2 . 1 . 1 . . . . . . . 1 1 1 1 . . . . . . . . . . . . . . . . . . . . . . Known Exits Taken 23 | . . 1 1 . . 1 1 . 1 . 1 1 . 1 1 1 1 1 1 . . . . 1 . 1 1 1 . 1 1 . 1 . . 1 1 . 1 . Unknown Exits Taken 9 | 1 1 . . 1 1 . . . . . . . . . . . . . . . 1 1 1 . . . . . 1 . . . . . . . . 1 . . Scrap Searched 18 | . . 1 . 1 . 1 . . . . . . . . 4 1 . 3 . . . . . . . . 3 1 . 3 . . . . . . . . . . Spaces Dug 77 | . 1 . 1 . . . 1 . 1 . . 5 . 14 . 2 . . 4 3 . . . . 4 . . 8 . 3 . . . . 1 1 16 5 7 . Terrain Destroyed 1224 | . 2 . 14 . . . 9 144 9 2 1 53 31 29 56 2 . 97 23 190 18 1 13 5 75 1 52 46 3 8 3 103 . 5 148 3 38 7 17 16 Melee 13 | . . . 1 . . . 1 . . . . . . 4 . 2 . . 3 2 . . . . . . . . . . . . . . . . . . . . Projectile 190 | . 1 . . . . . . . 9 . 1 12 . 1 4 . . 2 1 . 6 1 13 5 10 1 6 26 3 8 3 9 . . 9 3 16 7 17 16 AOE 1020 | . 1 . 13 . . . 8 144 . 2 . 41 31 24 52 . . 95 19 188 12 . . . 65 . 46 20 . . . 94 . 5 139 . 21 . . . Terrain Rammed . | . . . . . . . . . . . . . . . . . . . . . . . . . . . . . . . . . . . . . . . . . Walls Destroyed . | . . . . . . . . . . . . . . . . . . . . . . . . . . . . . . . . . . . . . . . . . Machines Disabled . | . . . . . . . . . . . . . . . . . . . . . . . . . . . . . . . . . . . . . . . . . Actions | -11 -10 -10 -9 -9 -9 -8 -8 -8 -8 -8 -8 -7 -7 -7 -7 -7 -7 -6 -6 -6 -6 -6 -6 -6 -6 -5 -5 -5 -5 -4 -4 -4 -4 -4 -4 -3 -3 -2 -1 -1 --------- Run | Yrd Mat Min Mat Min Exi Min Mat Gar Mat Gar Mat Fac Gar Fac Low Low Dat Pro Fac Gar Ext Cet Arc Hub Gar Fac Upp Upp War Pro Fac Gar Fac DSF Gar Res Arm Res Acc Com Total 31905 | 828 1082 1091 863 386 860 666 1238 774 555 885 308 1450 931 778 1102 685 104 1199 867 1393 837 266 762 389 948 586 1203 472 900 315 525 1144 79 198 1102 506 935 1068 727 898 Wait 2880 | 586 241 22 78 5 16 15 120 42 27 383 29 49 23 63 34 30 . 110 90 118 60 33 122 54 22 11 35 3 39 11 53 62 6 8 30 25 89 11 68 57 Move 25682 | 199 725 1014 652 360 834 634 985 631 455 420 248 1296 784 649 1013 646 98 1028 663 1085 628 186 586 324 755 509 1091 423 711 288 422 888 65 119 884 423 686 954 584 737 Hop . | . . . . . . . . . . . . . . . . . . . . . . . . . . . . . . . . . . . . . . . . . Pick Up 191 | 9 9 2 9 2 6 3 9 1 5 3 4 7 1 4 1 . . 4 9 8 3 3 2 . 1 9 3 . 1 . 2 13 2 16 4 7 11 9 5 4 Fast Attach 384 | 7 3 2 15 . . . 15 1 6 4 2 8 12 8 5 1 3 8 27 34 4 8 11 2 9 13 19 6 29 . 8 24 2 12 12 11 20 22 3 8 Attach 87 | . 1 . 2 . . 1 2 2 . 5 . 3 2 1 2 . . 5 7 4 . 2 2 . 1 6 1 . . . 2 13 . 1 6 2 5 2 4 3 Detach 46 | . 1 . 2 . . . 1 . . 1 . 2 1 2 . . . 2 5 4 1 2 . . . 2 1 1 1 . 1 4 1 2 3 . 1 3 1 1 Swap 381 | . 10 7 11 1 1 1 17 13 9 9 3 10 18 16 10 2 . 5 14 19 13 5 1 1 20 5 14 5 3 3 4 22 . 8 11 7 28 18 22 15 Drop 499 | 1 14 6 27 2 3 2 26 4 13 8 9 17 6 9 5 1 3 8 19 25 13 12 11 2 11 18 22 6 30 . 7 32 3 19 9 17 34 34 4 7 Fire 1408 | 26 75 32 66 10 . 10 61 62 40 50 12 55 81 19 30 3 . 25 9 61 39 15 26 5 76 13 17 28 52 13 24 85 . 13 87 14 58 15 36 65 Melee 72 | . . . 1 . . . 1 4 . . . . . 5 . 2 . . 23 35 . . 1 . . . . . . . . . . . . . . . . . Ram 1 | . . . . . . . 1 . . . . . . . . . . . . . . . . . . . . . . . . . . . . . . . . . Kick 3 | . . . . . . . . . . . . . . . . . . . . . 3 . . . . . . . . . . . . . . . . . . . Crush 29 | . 3 6 . 6 . . . . . . 1 3 1 2 . . . 2 . . . . . . . . . . 1 . 2 . . . . . 1 . . 1 Escape Stasis 13 | . . . . . . . . 2 . 2 . . . . . . . . . . 5 . . . . . . . . . . . . . 4 . . . . . Rewire 224 | . . . . . . . . 12 . . . . 2 . 2 . . . 1 . 68 . . 1 52 . . . 33 . . . . . 52 . 1 . . . Trap 5 | . . . . . . . . . . . . . . . . . . 2 . . . . . . 1 . . . . . . 1 . . . . 1 . . . Miscellaneous . | . . . . . . . . . . . . . . . . . . . . . . . . . . . . . . . . . . . . . . . . . Route ------- -11/Scrapyard -10/Materials (discovered 5 exits: *Mat x3 / [*Min] / Sub) -10/Mines (discovered 3 exits: *Mat x2 / *Sub) -9/Materials (discovered 6 exits: *Mat x3 / *Min / Sto x2) -9/Mines (discovered 3 exits: *Mat x2 / *Exi) -9/Exiles (discovered 2 exits: [*Min x2]) -8/Mines (discovered 2 exits: *Mat x2) -8/Materials (discovered 4 exits: *Fac x3 / Gar) -8/Garrison (discovered 3 exits: *Mat x3) -8/Materials (discovered 4 exits: *Fac x3 / Gar) -8/Garrison -8/Materials -7/Factory (discovered 2 exits: *Fac / Gar) -7/Garrison (discovered 3 exits: *Fac x3) -7/Factory (discovered 3 exits: *Fac / *Low x2) -7/Lower Caves -7/Lower Caves (discovered 2 exits: *Fac / *Dat) -7/Data Miner -6/Proximity Caves -6/Factory (discovered 3 exits: *Fac / Ext / Gar) -6/Garrison (discovered 3 exits: *Ext x3) -6/Extension (discovered 2 exits: *Fac / *Cet) -6/Cetus (discovered 2 exits: *Fac / *Arc) -6/Archives (discovered 3 exits: *Fac / *Hub x2) -6/Hub_04(d) (discovered 2 exits: *Fac / Gar) -6/Garrison (discovered 3 exits: *Fac x3) -5/Factory (discovered 2 exits: *Upp x2) -5/Upper Caves -5/Upper Caves (discovered 2 exits: *Fac / *War) -5/Warlord -4/Proximity Caves -4/Factory -4/Garrison (discovered 3 exits: *Fac x3) -4/Factory -4/DSF -4/Garrison (discovered 3 exits: *Res x3) -3/Research (discovered 3 exits: *Res / *Arm / Qua) -3/Armory (discovered 3 exits: *Res x2 / Lab) -2/Research (discovered 3 exits: *Acc x2 / *Tes) -1/Access -1/Command (discovered 2 exits: Sur x2) Free Derelict Territories History --------- Turn | Location | Event 5 | -11/Scrapyard | Discovered new exit (range 16) 999 | -11/Scrapyard | Entered Materials 1000 | -10/Materials | Build established: Mutant 1662 | -10/Materials | Discovered new exit (range 16) 1741 | -10/Materials | Identified exit to Materials 1751 | -10/Materials | Repaired Lgt. Treads? 1751 | -10/Materials | Discovered new exit (range 14) 2268 | -10/Materials | Identified exit to Subcaves 2448 | -10/Materials | Learned 2 Mines zone layouts 2486 | -10/Materials | Learned 4 Subcaves zone layouts 2534 | -10/Materials | Learned location of 2 exits from Materials 2592 | -10/Materials | Learned location of Storage (-9) 2643 | -10/Materials | Entered Mines 2645 | -10/Mines | Core integrity fell below 50% 2672 | -10/Mines | Met a Derelict bent on vengeance 2776 | -10/Mines | Build established: Scavenger-Mutant 3682 | -10/Mines | Learned 2 Materials zone layouts 3901 | -10/Mines | Discovered exit to Subcaves (range 10) 4398 | -10/Mines | Entered Materials 4398 | -9/Materials | Evolved 2 slots: Utility x1, Weapon x1 4399 | -9/Materials | Identified exit to Mines 4399 | -9/Materials | Identified exit to Materials 4610 | -9/Materials | Repaired Beamcaster? 4682 | -9/Materials | Build established: Scavenger-Gunner 4999 | -9/Materials | Build established: Gunner 5069 | -9/Materials | Discovered exit to Materials (range 6) 5343 | -9/Materials | Learned location of 3 exits from Materials 5403 | -9/Materials | Learned location of 3 exits from Materials 5453 | -9/Materials | Learned location of 1 exit from Storage 5492 | -9/Materials | Learned Storage garrison access intel 5519 | -9/Materials | Loaded intel: 2 repair station locations 5560 | -9/Materials | Identified exit to Storage 5637 | -9/Materials | Learned Storage emergency access door positions 5782 | -9/Materials | Entered Mines 5844 | -9/Mines | Discovered exit to Materials (range 9) 5892 | -9/Mines | Discovered exit to Materials (range 14) 6252 | -9/Mines | Deemed a non-threat by the Exiles lab entrance 6253 | -9/Mines | Discovered new exit (range 5) 6347 | -9/Mines | Assembled infested the area 6352 | -9/Mines | Assisted by a Guerilla fighting off Assembled 6410 | -9/Mines | Entered Exiles 6436 | -9/Exiles | Discovered new exit (range 14) 6484 | -9/Exiles | Met 8R-AWN 6511 | -9/Exiles | Met EX-HEX 6572 | -9/Exiles | Met EX-DEC 6580 | -9/Exiles | Learned location of Zion (-6) 6643 | -9/Exiles | Visited The Gauntlet 6933 | -9/Exiles | Met EX-BIN 7549 | -9/Exiles | Aligned with FarCom system 7550 | -9/Exiles | Given EX-Vault access code 7590 | -9/Exiles | Opened EX-Vault 7600 | -9/Exiles | Found Trap Reconfigurator 7631 | -9/Exiles | Warned to stay clear of 0b10 Research branches 7734 | -9/Exiles | Discovered new exit (range 14) 7767 | -9/Exiles | Left Exiles lab with Trap Reconfigurator 7767 | -9/Exiles | Entered Mines 8077 | -8/Mines | Build established: Skirmisher 8614 | -8/Mines | Discovered exit to Materials (range 13) 8680 | -8/Mines | Discovered exit to Materials (range 7) 8834 | -8/Mines | Entered Materials 8834 | -8/Materials | Evolved 2 slots: Propulsion x1, Utility x1 8835 | -8/Materials | Identified exit to Factory 9668 | -8/Materials | Build established: Scavenger-Skirmisher 9937 | -8/Materials | Repaired Beamcaster 10629 | -8/Materials | Identified exit to Garrison 10629 | -8/Materials | Entered Garrison 10783 | -8/Garrison | Triggered checkpoint 10848 | -8/Garrison | Garrison Relay disabled 10927 | -8/Garrison | Garrison Relay disabled 11045 | -8/Garrison | Triggered checkpoint 11111 | -8/Garrison | Discovered new exit (range 46) 11111 | -8/Garrison | Discovered new exit (range 37) 11111 | -8/Garrison | Discovered new exit (range 28) 11133 | -8/Garrison | Triggered checkpoint 11189 | -8/Garrison | Garrison Relay disabled 11239 | -8/Garrison | Core integrity fell below 50% 11328 | -8/Garrison | Phase Generator disabled 11413 | -8/Garrison | Triggered checkpoint 11537 | -8/Garrison | Triggered checkpoint 11556 | -8/Garrison | Garrison Relay disabled 11635 | -8/Garrison | Triggered checkpoint 11731 | -8/Garrison | Learned Materials security intel 11848 | -8/Garrison | Triggered checkpoint 11878 | -8/Garrison | Garrison Relay disabled 11908 | -8/Garrison | Entered Materials 12708 | -8/Materials | First assault squad dispatched 12818 | -8/Materials | Identified exit to Garrison 12818 | -8/Materials | Entered Garrison 12822 | -8/Garrison | Triggered checkpoint 13020 | -8/Garrison | Triggered checkpoint 13059 | -8/Garrison | Garrison Relay disabled 13255 | -8/Garrison | Triggered checkpoint 13334 | -8/Garrison | Discovered new exit (range 10) 13440 | -8/Garrison | Triggered checkpoint 13452 | -8/Garrison | Core integrity fell below 20% 13511 | -8/Garrison | Lost 3 parts (1p1u1w) 13529 | -8/Garrison | Garrison Relay disabled 14028 | -8/Garrison | Entered Materials 14336 | -8/Materials | Build established: Skirmisher 14455 | -8/Materials | Discovered exit to Factory (range 15) 14515 | -8/Materials | Entered Factory 14515 | -7/Factory | Evolved 2 slots: Power x1, Utility x1 15631 | -7/Factory | Found Prototype Launcher 15631 | -7/Factory | Identified Rocket Array 15760 | -7/Factory | Repaired Imp. Light Armor Plating? 16212 | -7/Factory | Discovered new exit (range 14) 16684 | -7/Factory | Fabricated Graphene Brace (x2) 16880 | -7/Factory | Identified exit to Garrison 16880 | -7/Factory | Entered Garrison 16997 | -7/Garrison | Triggered checkpoint 17036 | -7/Garrison | Garrison Relay disabled 17149 | -7/Garrison | Triggered checkpoint 17173 | -7/Garrison | Build established: Tank 17284 | -7/Garrison | Discovered new exit (range 9) 17356 | -7/Garrison | Triggered checkpoint 17385 | -7/Garrison | Garrison Relay disabled 17503 | -7/Garrison | Build established: Skirmisher 17551 | -7/Garrison | Triggered checkpoint 17688 | -7/Garrison | Discovered new exit (range 10) 17757 | -7/Garrison | Triggered checkpoint 17822 | -7/Garrison | Garrison Relay disabled 17961 | -7/Garrison | Triggered checkpoint 18023 | -7/Garrison | System corruption reached 10% 18055 | -7/Garrison | Lost 3 parts (1p1n1w) 18071 | -7/Garrison | Discovered new exit (range 13) 18131 | -7/Garrison | Learned Factory security intel 18203 | -7/Garrison | Found embedded Infiltrators 18258 | -7/Garrison | Triggered checkpoint 18295 | -7/Garrison | Garrison Relay disabled 18297 | -7/Garrison | Garrison Relay disabled 18388 | -7/Garrison | Rescued a captive Derelict 18449 | -7/Garrison | Entered Factory 18449 | -7/Factory | Accompanied by 3 allies 18603 | -7/Factory | Garrison activated, responded to threat 18691 | -7/Factory | Build established: Scavenger-Skirmisher 19160 | -7/Factory | Build established: Skirmisher 19184 | -7/Factory | Identified exit to Lower Caves 19394 | -7/Factory | Discovered new exit (range 15) 19649 | -7/Factory | First assault squad dispatched 19662 | -7/Factory | Repaired Broken Rocket Array? 19702 | -7/Factory | Entered Lower Caves 19798 | -7/Lower Caves | Met a Warlord Commander 19799 | -7/Lower Caves | Learned location of Warlord (-5) 19800 | -7/Lower Caves | Warlord Commander delivered Encrypted Comm Array 19803 | -7/Lower Caves | Found Encrypted Comm Array 20039 | -7/Lower Caves | Encountered a Warlord checkpoint 21207 | -7/Lower Caves | Identified exit to Lower Caves 21316 | -7/Lower Caves | Entered a destroyed Warlord outpost 21534 | -7/Lower Caves | Entered another Lower Caves area 21619 | -7/Lower Caves | Discovered new exit (range 14) 21669 | -7/Lower Caves | Identified exit to Factory 21911 | -7/Lower Caves | Learned Extension garrison access intel 21911 | -7/Lower Caves | Learned Research security intel 21911 | -7/Lower Caves | Learned Extension stockpile data 21911 | -7/Lower Caves | Learned location of 1 exit from Factory 22091 | -7/Lower Caves | Learned 4 Factory zone layouts 22095 | -7/Lower Caves | Identified exit to Data Miner 22638 | -7/Lower Caves | Entered Data Miner 22640 | -7/Data Miner | Discovered new exit (range 6) 22671 | -7/Data Miner | Met Data Miner 22712 | -7/Data Miner | Learned location of Section 7 (-2) 22712 | -7/Data Miner | Acquired the access code to Warlord's prototype stash 22738 | -7/Data Miner | Received God Mode back door access code from Data Miner 22779 | -7/Data Miner | Identified exit to Proximity Caves 22804 | -7/Data Miner | Entered Proximity Caves 23042 | -6/Proximity Caves | Spotter reported a threat 23243 | -6/Proximity Caves | Spotter reported a threat 23299 | -6/Proximity Caves | Lost 4 parts (2n2u) 23307 | -6/Proximity Caves | Spotter reported a threat 23374 | -6/Proximity Caves | Spotted B-75 Beast 23511 | -6/Proximity Caves | Ambushed by research squad 23514 | -6/Proximity Caves | Core integrity fell below 50% 23783 | -6/Proximity Caves | Received a Behemoth hack from an annoying Tinkerer 23811 | -6/Proximity Caves | Build established: Gunner 23843 | -6/Proximity Caves | Destroyed B-75 Beast 24163 | -6/Proximity Caves | Build established: Skirmisher 24523 | -6/Proximity Caves | Learned Factory terminal intel 24540 | -6/Proximity Caves | Discovered exit to Factory (range 13) 24691 | -6/Proximity Caves | Entered Factory 24691 | -6/Factory | Evolved 2 slots: Propulsion x1, Utility x1 24692 | -6/Factory | Identified exit to Extension 24693 | -6/Factory | Identified exit to Factory 24694 | -6/Factory | Loaded intel: 26 terminal locations 24976 | -6/Factory | Lost 10 parts (1p2n2u5w) 25533 | -6/Factory | Joined by Warlord Pyro squad 25679 | -6/Factory | Build established: Scavenger-Gladiator 25769 | -6/Factory | Identified exit to Garrison 25769 | -6/Factory | Entered Garrison 25839 | -6/Garrison | Triggered checkpoint 25861 | -6/Garrison | Garrison Relay disabled 25907 | -6/Garrison | Garrison Relay disabled 26146 | -6/Garrison | Triggered checkpoint 26146 | -6/Garrison | Triggered checkpoint 26149 | -6/Garrison | Spotted B-75 Beast 26177 | -6/Garrison | Destroyed 7 combat bots 26190 | -6/Garrison | Lost 3 parts (2n1u) 26203 | -6/Garrison | Destroyed B-75 Beast 26284 | -6/Garrison | Triggered checkpoint 26379 | -6/Garrison | Discovered exit to Extension (range 5) 26410 | -6/Garrison | Phase Generator disabled 26495 | -6/Garrison | Triggered checkpoint 26563 | -6/Garrison | Lost 4 parts (1p3n) 26563 | -6/Garrison | Garrison Relay disabled 26848 | -6/Garrison | Discovered exit to Extension (range 14) 27017 | -6/Garrison | Triggered checkpoint 27060 | -6/Garrison | Core integrity fell below 50% 27144 | -6/Garrison | Lost 4 parts (3n1w) 27443 | -6/Garrison | Triggered checkpoint 27462 | -6/Garrison | Garrison Relay disabled 27586 | -6/Garrison | Build established: Scavenger-Tank 27613 | -6/Garrison | Garrison Relay disabled 27681 | -6/Garrison | Triggered checkpoint 27701 | -6/Garrison | Discovered exit to Extension (range 15) 27980 | -6/Garrison | Entered Extension 28220 | -6/Extension | Rescued a captive Derelict 28233 | -6/Extension | Rescued a captive Derelict 28315 | -6/Extension | Rescued a captive Derelict 28327 | -6/Extension | Rescued a captive Derelict 28330 | -6/Extension | First assault squad dispatched 28342 | -6/Extension | Rescued a captive Derelict 28343 | -6/Extension | Rescued a captive Derelict 28362 | -6/Extension | Rescued A7 28578 | -6/Extension | Build established: Commander-Skirmisher 28651 | -6/Extension | Spotted B-75 Beast 28665 | -6/Extension | Allies destroyed B-75 Beast 28669 | -6/Extension | Spotted B-75 Beast 28682 | -6/Extension | Destroyed B-75 Beast 28778 | -6/Extension | Rescued a captive Derelict 28780 | -6/Extension | Rescued a captive Derelict 28793 | -6/Extension | Rescued a captive Derelict 28842 | -6/Extension | System corruption reached 10% 28852 | -6/Extension | Rescued a captive Derelict 29013 | -6/Extension | Discovered exit to Factory (range 10) 29014 | -6/Extension | Discovered new exit (range 6) 29049 | -6/Extension | Disrupted transfer network 29066 | -6/Extension | Lost 6 allies 29073 | -6/Extension | Destroyed 9 combat bots 29077 | -6/Extension | Entered Cetus 29077 | -6/Cetus | Accompanied by 6 allies (A7) 29082 | -6/Cetus | Acquired a Cetus Manufacturing Module code from A7 29097 | -6/Cetus | Spotted Cetus Guard 29097 | -6/Cetus | Spotted Cetus Guard 29101 | -6/Cetus | Spotted Cetus Guard 29101 | -6/Cetus | Allies destroyed Cetus Guard 29101 | -6/Cetus | Spotted Cetus Guard 29112 | -6/Cetus | Destroyed Cetus Guard 29118 | -6/Cetus | Destroyed Cetus Guard 29121 | -6/Cetus | Allies destroyed Cetus Guard 29148 | -6/Cetus | Lost 3 allies 29209 | -6/Cetus | Build established: Scavenger-Tank 29226 | -6/Cetus | Started Cetus Manufacturing Module 29251 | -6/Cetus | Manufactured an Enhanced Grunt 29254 | -6/Cetus | Escorted A7 to Cetus Mainframe 29276 | -6/Cetus | Manufactured an Enhanced Grunt 29300 | -6/Cetus | Discovered new exit (range 15) 29301 | -6/Cetus | Manufactured an Enhanced Grunt 29326 | -6/Cetus | Manufactured an Enhanced Grunt 29333 | -6/Cetus | Spotted Cetus Guard 29333 | -6/Cetus | Spotted Cetus Guard 29336 | -6/Cetus | Spotted Cetus Guard 29336 | -6/Cetus | Spotted Cetus Guard 29342 | -6/Cetus | Allies destroyed Cetus Guard 29343 | -6/Cetus | Destroyed Cetus Guard 29351 | -6/Cetus | Manufactured an Enhanced Grunt 29351 | -6/Cetus | Allies destroyed Cetus Guard 29356 | -6/Cetus | Allies destroyed Cetus Guard 29367 | -6/Cetus | Discovered exit to Factory (range 15) 29375 | -6/Cetus | Met Revision 17 29471 | -6/Cetus | Entered Archives 29471 | -6/Archives | Accompanied by 8 allies (A7) 29476 | -6/Archives | Received a hacking code to weaken MAIN.C 29540 | -6/Archives | Discovered new exit (range 16) 29663 | -6/Archives | Discovered exit to Factory (range 15) 29774 | -6/Archives | Unable to access archive contents 29882 | -6/Archives | Discovered new exit (range 15) 33143 | -6/Archives | Entered Hub_04(d) 33143 | -6/Hub_04(d) | Accompanied by 6 allies 33393 | -6/Hub_04(d) | Identified exit to Garrison 33425 | -6/Hub_04(d) | Discovered exit to Factory (range 13) 33542 | -6/Hub_04(d) | Network Hub disabled 33561 | -6/Hub_04(d) | Incoming investigation squad redirected 33570 | -6/Hub_04(d) | Incoming assault squad redirected 33670 | -6/Hub_04(d) | Network Hub disabled 33673 | -6/Hub_04(d) | Network Hub disabled 33738 | -6/Hub_04(d) | Entered Garrison 33738 | -6/Garrison | Accompanied by 4 allies 33778 | -6/Garrison | Triggered checkpoint 33801 | -6/Garrison | Garrison Relay disabled 33828 | -6/Garrison | Garrison Relay disabled 34234 | -6/Garrison | Found Exp. Thermal Shield 34240 | -6/Garrison | Triggered checkpoint 34250 | -6/Garrison | Triggered checkpoint 34290 | -6/Garrison | Destroyed 12 combat bots 34382 | -6/Garrison | Triggered checkpoint 34543 | -6/Garrison | Triggered checkpoint 34588 | -6/Garrison | Discovered exit to Factory (range 5) 34632 | -6/Garrison | Garrison Relay disabled 34898 | -6/Garrison | Triggered checkpoint 34916 | -6/Garrison | Garrison Relay disabled 34948 | -6/Garrison | Discovered exit to Factory (range 8) 35128 | -6/Garrison | Discovered exit to Factory (range 8) 35197 | -6/Garrison | Garrison Relay disabled 35266 | -6/Garrison | Entered Factory 35266 | -5/Factory | Accompanied by 4 allies 35266 | -5/Factory | Evolved 2 slots: Utility x2 35379 | -5/Factory | Identified exit to Upper Caves 35391 | -5/Factory | Repaired Centrium Medium Armor Plating? 35403 | -5/Factory | Joined by Warlord Muscle squad 35566 | -5/Factory | First assault squad dispatched 35582 | -5/Factory | Incoming assault squad redirected 35592 | -5/Factory | Incoming assault squad redirected 35667 | -5/Factory | Lost 4 allies 35789 | -5/Factory | Fabricated H-66 Slayer (x2) 35792 | -5/Factory | Fabricated X-67 Chaingunner (x2) 35883 | -5/Factory | Incoming assault squad redirected 35885 | -5/Factory | Lost 3 allies 35995 | -5/Factory | Found Unknown Protection 35995 | -5/Factory | Identified Hvy. Reactive Plating 36179 | -5/Factory | Entered Upper Caves 36179 | -5/Upper Caves | Accompanied by 4 allies 36208 | -5/Upper Caves | P-70 Sage assimilated allied 7I-09Z(b) 36223 | -5/Upper Caves | Attacked by a faux Warlord 36650 | -5/Upper Caves | Learned Factory emergency access door positions 37486 | -5/Upper Caves | Attracted the attention of an 0b10 base 37533 | -5/Upper Caves | Lost 3 allies 37559 | -5/Upper Caves | Learned Extension stockpile data 37559 | -5/Upper Caves | Learned location of 1 exit from Proximity Caves 37778 | -5/Upper Caves | Attracted the attention of an 0b10 checkpoint 37841 | -5/Upper Caves | Discovered new exit (range 4) 37845 | -5/Upper Caves | Identified exit to Upper Caves 38082 | -5/Upper Caves | Entered another Upper Caves area 38188 | -5/Upper Caves | Discovered new exit (range 7) 38222 | -5/Upper Caves | Identified exit to Factory 38385 | -5/Upper Caves | Learned 4 Factory zone layouts 38832 | -5/Upper Caves | Discovered new exit (range 3) 38835 | -5/Upper Caves | Identified exit to Warlord 38839 | -5/Upper Caves | Attracted the attention of an 0b10 checkpoint 38840 | -5/Upper Caves | Entered Warlord 38893 | -5/Warlord | System corruption cleaned by Quarantine Array 39008 | -5/Warlord | Learned Research emergency access door positions 39010 | -5/Warlord | Learned 4 Armory zone layouts 39010 | -5/Warlord | Learned 4 Research zone layouts 39012 | -5/Warlord | Learned Testing security intel 39012 | -5/Warlord | Learned Research scanalyzer intel 39050 | -5/Warlord | Opened Warlord's prototype stash 39059 | -5/Warlord | Found Prototype Reactor 39059 | -5/Warlord | Identified Vortex Chain Reactor 39123 | -5/Warlord | Found Prototype Processor 39123 | -5/Warlord | Identified Exp. Targeting Computer 39131 | -5/Warlord | Found Prototype Processor 39131 | -5/Warlord | Identified Spectral Analyzer 39314 | -5/Warlord | Found Prototype Special Weapon 39314 | -5/Warlord | Identified RU-N14's Throwing Claymores v3 39339 | -5/Warlord | Build established: Tank 39595 | -5/Warlord | Met Warlord 39620 | -5/Warlord | Warlord's base attacked by MAIN.C 39845 | -5/Warlord | Build established: Commander-Tank 39905 | -5/Warlord | Destroyed 8 combat bots 39970 | -5/Warlord | Warlord forces counterattacked 40006 | -5/Warlord | Spotted Executioner 40010 | -5/Warlord | Allies destroyed Executioner 40023 | -5/Warlord | Spotted Executioner 40038 | -5/Warlord | Found Prototype Processor 40038 | -5/Warlord | Identified Exp. Core Analyzer 40123 | -5/Warlord | Discovered new exit (range 15) 40123 | -5/Warlord | Spotted B-86 Titan 40129 | -5/Warlord | Spotted Striker 40152 | -5/Warlord | Destroyed Striker 40171 | -5/Warlord | Found Exp. Core Analyzer 40210 | -5/Warlord | Lost 7 allies 40295 | -5/Warlord | Warlord base infiltrated, sounded retreat 40321 | -5/Warlord | Entered Proximity Caves 40321 | -4/Proximity Caves | Accompanied by 3 allies 40350 | -4/Proximity Caves | Attracted the attention of an 0b10 checkpoint 40439 | -4/Proximity Caves | Spotter reported a threat 40456 | -4/Proximity Caves | Spotter reported a threat 40469 | -4/Proximity Caves | Build established: Scavenger-Gunner 40508 | -4/Proximity Caves | Spotter reported a threat 40534 | -4/Proximity Caves | Learned Research security intel 40633 | -4/Proximity Caves | Spotter reported a threat 40836 | -4/Proximity Caves | Entered Factory 40836 | -4/Factory | Accompanied by 2 allies 40836 | -4/Factory | Evolved 2 slots: Utility x1, Weapon x1 40985 | -4/Factory | Repaired Hvy. Reactive Plating 41022 | -4/Factory | Found Unknown Protection 41022 | -4/Factory | Identified Hvy. Reflective Plating 41086 | -4/Factory | Search patrols dispatched 41245 | -4/Factory | Garrison activated, responded to threat 41336 | -4/Factory | Search patrols dispatched 41442 | -4/Factory | Repaired Hvy. Treads 41677 | -4/Factory | Identified exit to Garrison 41677 | -4/Factory | Entered Garrison 41717 | -4/Garrison | Triggered checkpoint 41776 | -4/Garrison | Garrison Relay disabled 41841 | -4/Garrison | Triggered checkpoint 41853 | -4/Garrison | Triggered checkpoint 42033 | -4/Garrison | Triggered checkpoint 42125 | -4/Garrison | Discovered new exit (range 12) 42256 | -4/Garrison | Spotted B-86 Titan 42272 | -4/Garrison | System corruption reached 10% 42284 | -4/Garrison | Befriended a Behemoth using the annoying Tinkerer's hack 42330 | -4/Garrison | Lost 11 parts (1p1n5u4w) 42364 | -4/Garrison | Found Prototype Processor 42364 | -4/Garrison | Identified Exp. Terrain Scan Processor 42385 | -4/Garrison | Found Prototype Protection 42385 | -4/Garrison | Identified Centrium Heavy Armor Plating 42394 | -4/Garrison | Found Exp. Terrain Scan Processor 42404 | -4/Garrison | Found Prototype Hackware 42491 | -4/Garrison | Garrison Relay disabled 42549 | -4/Garrison | Triggered checkpoint 42616 | -4/Garrison | Build established: Scavenger-Tank 42681 | -4/Garrison | Garrison Relay disabled 42704 | -4/Garrison | Discovered new exit (range 14) 42798 | -4/Garrison | H-XX Assembler disabled 42934 | -4/Garrison | Attempted to access garrison exit controls, blocked by remote lockdown 43015 | -4/Garrison | Triggered checkpoint 43157 | -4/Garrison | Build established: Tank 43182 | -4/Garrison | Attempted to access garrison exit controls, blocked by remote lockdown 43319 | -4/Garrison | Discovered new exit (range 13) 43365 | -4/Garrison | Entered Factory 43466 | -4/Factory | Identified exit to DSF 43466 | -4/Factory | Entered DSF 43511 | -4/DSF | Additional patrols routed to DSF 43651 | -4/DSF | Sterilization system engaged 43671 | -4/DSF | Ambient heat levels rising (+10) 43686 | -4/DSF | Ambient heat levels rising (+10) 43694 | -4/DSF | Discovered new exit (range 15) 43701 | -4/DSF | Ambient heat levels rising (+10) 43716 | -4/DSF | Ambient heat levels rising (+10) 43731 | -4/DSF | Ambient heat levels rising (+10) 43746 | -4/DSF | Ambient heat levels rising (+10) 43761 | -4/DSF | Ambient heat levels rising (+10) 43776 | -4/DSF | Ambient heat levels rising (+10) 43789 | -4/DSF | Entered Garrison 43819 | -4/Garrison | Triggered checkpoint 43860 | -4/Garrison | Garrison Relay disabled 44105 | -4/Garrison | Triggered checkpoint 44113 | -4/Garrison | Spotted B-86 Titan 44126 | -4/Garrison | Triggered checkpoint 44216 | -4/Garrison | Destroyed B-86 Titan 44370 | -4/Garrison | Core integrity fell below 50% 44451 | -4/Garrison | Discovered new exit (range 14) 44547 | -4/Garrison | Triggered checkpoint 44598 | -4/Garrison | Destroyed 7 combat bots 44605 | -4/Garrison | Lost 3 parts (1u2w) 44655 | -4/Garrison | Garrison Relay disabled 44689 | -4/Garrison | Discovered new exit (range 13) 44877 | -4/Garrison | Discovered new exit (range 56) 44877 | -4/Garrison | Discovered new exit (range 48) 44877 | -4/Garrison | Discovered new exit (range 19) 44893 | -4/Garrison | Build established: Scavenger-Tank 45092 | -4/Garrison | Rewired Executioner 45094 | -4/Garrison | Rewired Executioner 45130 | -4/Garrison | Phase Generator disabled 45214 | -4/Garrison | Attempted to access garrison exit controls, blocked by remote lockdown 45269 | -4/Garrison | Triggered checkpoint 45303 | -4/Garrison | Triggered checkpoint 45355 | -4/Garrison | Found embedded Infiltrators 45365 | -4/Garrison | Garrison Relay disabled 45583 | -4/Garrison | Attempted to access garrison exit controls, blocked by remote lockdown 45733 | -4/Garrison | Entered Research 45733 | -3/Research | Accompanied by 4 allies 45733 | -3/Research | Evolved 2 slots: Propulsion x2 45734 | -3/Research | Identified exit to Armory 45734 | -3/Research | Identified exit to Quarantine 45738 | -3/Research | Loaded intel: 6 scanalyzer locations 45747 | -3/Research | Identified Exp. System Shield 45933 | -3/Research | Revision forces began assault on 0b10 45950 | -3/Research | Spotted B-86 Titan 45954 | -3/Research | Allies destroyed B-86 Titan 45996 | -3/Research | Met up with Revision 17++ 46187 | -3/Research | Repaired Centrium Heavy Armor Plating 46228 | -3/Research | Discovered new exit (range 16) 46236 | -3/Research | Lost 3 allies 46433 | -3/Research | Research terminal network offline 46527 | -3/Research | Entered Armory 46527 | -3/Armory | Accompanied by 1 ally 46528 | -3/Armory | Identified exit to Research 46528 | -3/Armory | Identified exit to Lab 46614 | -3/Armory | Found Unknown Launcher 46614 | -3/Armory | Identified Fusion Bomb Launcher 46783 | -3/Armory | Fabricated H-66 Slayer? 46783 | -3/Armory | Build established: Scavenger-Skirmisher 46791 | -3/Armory | Found Fusion Bomb Launcher 47028 | -3/Armory | Fabricated H-66 Slayer? 47244 | -3/Armory | Fabricated Adv. Point Defense System? 47277 | -3/Armory | First assault squad dispatched 47295 | -3/Armory | Fabricated Hpw. Tractor Beam (x2) 47303 | -3/Armory | Incoming assault squad redirected 47665 | -3/Armory | Found Unknown Device 47665 | -3/Armory | Identified Adv. Force Booster 47811 | -3/Armory | Incoming assault squad redirected 47945 | -3/Armory | Discovered exit to Research (range 14) 48040 | -3/Armory | Entered Research 48040 | -2/Research | Warlord forces began assault on 0b10 48040 | -2/Research | Evolved 2 slots: Utility x2 48065 | -2/Research | Distinguished unit "Bridgeowners Association" dispatched to help 48065 | -2/Research | Distinguished unit "Golden Rifle" dispatched to help 48150 | -2/Research | Research machine network offline 48286 | -2/Research | Found Prototype Launcher 48286 | -2/Research | Identified Tactical Quantum Warhead 48461 | -2/Research | Discovered new exit (range 15) 48488 | -2/Research | Identified exit to Testing 48549 | -2/Research | Found Exp. Core Analyzer 48635 | -2/Research | Met up with Warlord 48646 | -2/Research | Found Prototype Device 48646 | -2/Research | Identified Adv. Kinecellerator 48647 | -2/Research | Borebot progress halted 48833 | -2/Research | Borebot progress halted 48996 | -2/Research | Discovered new exit (range 15) 49005 | -2/Research | Discovered new exit (range 16) 49051 | -2/Research | Spotted Striker 49271 | -2/Research | Found Exp. Targeting Computer 49404 | -2/Research | Spotted Executioner 49408 | -2/Research | Destroyed Executioner 49414 | -2/Research | Spotted Striker 49543 | -2/Research | Given Cave Seal Controls access code 49713 | -2/Research | Entered Access 49713 | -1/Access | Evolved 2 slots: Power x1, Utility x1 49895 | -1/Access | Garrison activated, responded to threat 50581 | -1/Access | Identified exit to Command 50894 | -1/Access | Entered Command 50939 | -1/Command | Identified exit to Surface 50985 | -1/Command | Spotted B-99 Colossus 50988 | -1/Command | Befriended a Behemoth using the annoying Tinkerer's hack 51191 | -1/Command | Repaired Centrium Heavy Armor Plating 51487 | -1/Command | Build established: Scavenger-Tank 51650 | -1/Command | Spotted Alpha 7 51650 | -1/Command | Spotted Striker 51651 | -1/Command | Spotted Striker 51658 | -1/Command | Spotted Alpha 7 51667 | -1/Command | Destroyed Striker 51675 | -1/Command | Spotted Executioner 51675 | -1/Command | Allies destroyed Striker 51697 | -1/Command | Destroyed Executioner 51715 | -1/Command | Destroyed Alpha 7 51722 | -1/Command | Destroyed Alpha 7 51754 | -1/Command | Found Corrupted Prototype Ballistic Gun 51754 | -1/Command | Identified Multirail 51875 | -1/Command | Disengaged cave seal 51875 | -1/Command | Derelicts emerged from the dark tunnel 51875 | -1/Command | Welcomed Warlord to Command 52144 | -1/Command | First assault squad dispatched 52159 | -1/Command | Incoming assault squad redirected 52165 | -1/Command | Incoming assault squad redirected 52192 | -1/Command | Spotted M Guard 52192 | -1/Command | Spotted M Guard 52194 | -1/Command | Spotted Combat Programmer 52195 | -1/Command | Spotted Combat Programmer 52202 | -1/Command | Warlord commented on Warlord statues 52208 | -1/Command | Combat Programmer assimilated allied 4U-JWG(l) 52209 | -1/Command | Combat Programmer assimilated allied D0-RAB(l) 52213 | -1/Command | Combat Programmer assimilated allied D2-V9Z(l) 52214 | -1/Command | Destroyed Combat Programmer 52215 | -1/Command | Spotted M7-K9E(H) 52219 | -1/Command | Rewired M7-K9E(H) 52222 | -1/Command | System corruption reached 10% 52245 | -1/Command | Combat Programmer assimilated allied OZ-8F1(K) 52246 | -1/Command | Spotted OZ-8F1(K) 52249 | -1/Command | Combat Programmer assimilated allied GW-BIP(K) 52249 | -1/Command | Spotted GW-BIP(K) 52250 | -1/Command | Destroyed Combat Programmer 52250 | -1/Command | All MAIN.C guards destroyed 52262 | -1/Command | Lost 4 parts (1p1n2w) 52268 | -1/Command | Lost 12 allies 52340 | -1/Command | Met MAIN.C 52340 | -1/Command | Hacked MAIN.C using A7's code 52345 | -1/Command | 0b10 Conduit disabled 52377 | -1/Command | MAIN.C activated Command garrisons 52406 | -1/Command | Destroyed MAIN.C 52409 | *** | Establishing Free Derelict Territories! Last Messages --------------- 52399_ 71-XMG(h) knocked back. 52400_ HV Slug penetrates MAIN.C. 52400_ MAIN.C suffers critical hit (Destroy). 52402_ 71-XMG(h) knocked back. 52402_ MAIN.C suffers critical hit (Burn). 52403_ HV Slug penetrates GH-A77(H). 52403_ GH-A77(H) suffers critical hit (Destroy). 52404_ MAIN.C suffers critical hit (Destroy). 52404_ MAIN.C knocked back. 52406_ MAIN.C reaction time slowed by virus. 52406_ Slug penetrates MAIN.C. 52406_ Slug penetrates 0b10 Conduit. 52406_ MAIN.C: "I hope you know you're still going to DIE HERE WITH ME!" Heavy Barrier opened. 52406_ MAIN.C destroyed. 52407_ Acquired 19 matter. ZY-L1N: Victory! Sure there's still lots to do, but without MAIN.C at the helm 0b10 doesn't stand a chance. We've got this... Map ----- +----------------------------------------------------+ | ?????????????????????????????????????????????????? | | ?????????????????????????????????????????????????? | | ?????????????????????????????????????????????????? | | ?????????????????????????????????????????????????? | | ?????????????????????????????????????????????????? | | ?????????????????????????????????????????????????? | | ?????????????????????????????????????????????????? | | ?????????????????????????????????????????????????? | | ?????????????????????????????????????????????????? | | ?????????????????????????????????????????????????? | | ?????????????????????????????????????????????????? | | ?????????????????????????????????????????????????? | | ?????????????????????????????????????????????????? | | ?????????????????????????????????????????????????? | | ?????????????????????????????????????????????????? | | ?????????????????????????????????????????????????? | | ?????????????????????????????????????????????????? | | ?????????????????????????????????????????????????? | | ?????????????????????????????????????????????????? | | ?????????????????????????????????????????????????? | | ?????????????######################??????????????? | | ?????????????""""""" """" #??????????????? | | ?????????????"" "" = * #??????????????? | | ??????????????"""" "" [ ! !################ | | ?????????????"""""""""" !!!=+!] | | ????????????#" " """ @W !!i*+[! | | ?????????????"" """""" [!===+[!* | | ?????????????????"""""" %[ =[################ | | ?????????????????""""" M hHH !!!#??????????????? | | ????????????????? " h ggHH #??????????????? | | ??????????????? % % ""#??????????????? | | ???????????????"" " """#??????????????? | | ??????????????? """""#??????????????? | | ?????????????? """""#??????????????? | | ????????????? $ " #??????????????? | | ????????????? %% % " #??????????????? | | ????????????C " "" " #??????????????? | | ??????????? " %% """" ???????????????? | | ???????????? " ????????????????? | | ????????????? " " " ?????????????????? | | ????????????# " "" " """??????????????????? | | ????????????# ?""" " "??????????????????? | | ?????????????#??#??############??????????????????? | | ?????????????????????????????????????????????????? | | ?????????????????????????????????????????????????? | | ?????????????????????????????????????????????????? | | ?????????????????????????????????????????????????? | | ?????????????????????????????????????????????????? | | ?????????????????????????????????????????????????? | | ?????????????????????????????????????????????????? | +----------------------------------------------------+ Best States ------------- Heat Dissipation 138 Coolant Potential 120 Energy Generation 73 Energy Capacity 850 Matter Stores 300 Matter Capacity 500 Sight Range 22 Robot Scan Range 15 Terrain Scan Range 16 Terrain Scan Density 1010 Jamming Range 14 Base Temperature (-) 150 Armor Coverage 1650 Resistance: KI 40 Resistance: TH 30 Power Shielding 90 Propulsion Shielding 33 Point Defense Rating 240 Phase Shifting 15 Evasion (%) 55 Targeting Accuracy 12 Launcher Accuracy 30 Target Analysis 6 Core Analysis 12 Recoil Reduction 6 Particle Charging 20 Salvage Targeting 2 Offensive Hacking 28 Defensive Hacking 16 Authchip Count 4 Trap Extractor Capacity 6 Item Schematics ----------------- Hcp. Storage Unit | -10/Materials | Hacked Plasma Cutter | -9/Materials | Hacked Neutrino Core | -7/Factory | Hacked Transmission Jammer | -7/Factory | Scanalyzed Rocket Array | -7/Factory | Scanalyzed Combat Drone Bay | -7/Data Miner | Free Lgt. Regenerative Plating | -7/Data Miner | Free Biomechanical Wings | -7/Data Miner | Free Gravity Neutralizer | -7/Data Miner | Free Imp. Heavy Laser | -7/Data Miner | Free Thunder Leg | -7/Data Miner | Free Imp. Focal Shield | -7/Data Miner | Free Variable Charge Gun | -7/Data Miner | Free Imp. Linear Gravjet | -7/Data Miner | Free Adv. Point Defense System | -3/Armory | Hacked Hpw. Tractor Beam | -3/Armory | Hacked Robot Schematics ------------------ M-14 Sweeper | -7/Data Miner | Free R-10 Processor | -7/Data Miner | Free O-24 Administrator | -7/Data Miner | Free H-66 Slayer | -7/Data Miner | Free B-60 Warrior | -7/Data Miner | Free S-27 Virus | -7/Data Miner | Free M-13 Machinist | -4/Factory | Hacked Fabricated ------------ Graphene Brace | x2 | -7/Factory | Preloaded H-66 Slayer | x2 | -5/Factory | Authchip X-67 Chaingunner | x2 | -5/Factory | Preloaded H-66 Slayer | x2 | -3/Armory | Authchip H-66 Slayer | x2 | -3/Armory | Authchip Adv. Point Defense System | x2 | -3/Armory | Authchip Hpw. Tractor Beam | x2 | -3/Armory | Authchip Repaired ---------- Lgt. Treads | 27% | -10/Materials Beamcaster | 35% | -9/Materials Beamcaster | 25% | -8/Materials Imp. Light Armor Plating | 13% | -7/Factory Rocket Array | 99% | -7/Factory | Broken Centrium Medium Armor Plating | 34% | -5/Factory Hvy. Reactive Plating | 45% | -4/Factory Hvy. Treads | 55% | -4/Factory Centrium Heavy Armor Plating | 11% | -3/Research Centrium Heavy Armor Plating | 63% | -1/Command Alien Tech Used ----------------- None Achievements -------------- None Challenges ------------ None Game ------ Seed ActuatorBombLog Manual? 0 Play Time 08:13:42 Cumulative 551.9 hours Start 2025.07.07 @ 14:41:37 End 2025.07.10 @ 01:10:21 Sessions 11 Manual Loads 0 Difficulty Rogue Special Mode None Game No. 318 Rogue 293 Adventurer 7 Explorer 18 Win Type 7 Total 44 Types 27/0/8/2/0/1/1/3/0/2 Lore% 94 Gallery% 90 Achievement% 81 Wizard Run 0 Options --------- Layout 0 ASCII 0 Keyboard 0 Movement Numpad Keybinds 0 Fullscreen 1 Font 12/Smallcaps Map View 83x54 Zoom Use 0% Tactical HUD 1 Map Filters NONE Filters NONE Steam 1 RUN: cfd031b5-73ac-4873-accb-008752665555